Cogmind - Beta 13 X1 @@@ ROGUE MODE // 2023.07.04 @ 20:17:41 Player: Runia Result: Heading to fleet! Performance ------------- Evolutions (9) 4500 Regions Visited (33) 6600 Robots Destroyed (448) 2240 Value Destroyed (22339) 22339 Prototype IDs (300) 6000 Alien Tech Used (6) 1200 Bonus (38711) 38711 TOTAL SCORE: 81590 Bonus ------- High Alert Combat Kills 2595 Follower Combat Kills 2539 Network Hubs Disabled 200 Met Zhirov 300 Met Warlord at Base 500 MAIN.C Attacked Warlord 500 Warlord Defense Kills 2044 Built Enhanced Grunts 300 Met R17 at Cetus 500 Found Hidden Lab 3000 Used Core Reset Matrix 3000 Met R17 at Research 2000 Destroyed MAIN.C Guards 500 Met MAIN.C 5000 Destroyed MAIN.C Shell 5000 Destroyed MAIN.C 10000 Met Warlord at Command 2000 Met Architect 300 Destroyed A8 300 Destroyed A6 400 Win 3000 Friendly Fire -5267 Cogmind --------- Core Integrity 33/1600 Matter 46/800 Energy 614/630 System Corruption 1% Temperature Cool (9) Movement Walking (111) Location To Fleet Rendezvous Parts ------- > --- POWER (4) -------- Reinforced Quantum Reactor Zero-point Reactor Zero-point Reactor > --- PROPULSION (7) --- Enhanced Biometal Leg Centrium Leg Centrium Leg Centrium Leg High-density Centrium Leg Experimental Biometal Leg > --- UTILITY (12) ----- Advanced Cooling System Advanced Cooling System High-capacity Storage Unit Experimental Matter Compressor Experimental Targeting Computer Experimental Targeting Computer Experimental Target Analyzer Core Analyzer Centrium Heavy Armor Plating > --- WEAPON (3) ------- Compact Mass Driver Compact Mass Driver Graviton Cannon > --- INVENTORY (20) --- Advanced Energy Well (500) Experimental Energy Well (600) Ragnarok Missile Launcher Peak State ------------ > --- POWER ------------ Quantum Reactor Quantum Reactor Quantum Reactor Quantum Reactor > --- PROPULSION ------- Centrium Leg Centrium Leg Centrium Leg Centrium Leg Centrium Leg Centrium Leg High-density Centrium Leg > --- UTILITY ---------- 2N-1CE's Frost Array Huge Storage Unit Advanced Sensor Array Advanced Signal Interpreter Experimental Targeting Computer Experimental Core Analyzer Experimental Weapon Cycler Experimental Transmission Jammer Heavy Regenerative Plating System Mapper Deep Network Scanner > --- WEAPON ----------- Perforator CR-A16's Behemoth Slayer > --- INVENTORY -------- Reinforced Quantum Reactor Biometal Heavy Treads Experimental Biometal Leg Experimental Power Amplifier Experimental Cooling System Advanced Energy Well Experimental Energy Well Experimental EM Disruption Field Experimental Shield Generator Advanced Force Field Advanced Hacking Suite System Shield Transdimensional Reconstructor Core Reset Matrix Heavy Proton Cannon Heavy Proton Cannon Nova Cannon Enhanced Nova Cannon Warp Cannon Compact Mass Driver Compact Mass Driver Compact Mass Driver Ragnarok Missile Launcher [Rating: 248] Favorites ----------- Power Quantum Reactor Engine Subdweller Power Source Power Core Light Nuclear Core Reactor Quantum Reactor Propulsion Centrium Leg Treads Light Treads Leg Centrium Leg Wheel Armored Wheel Hover Unit Combat Airjet Flight Unit Improved VTOL Module Utility Experimental Targeting Computer Device Advanced Cooling System Storage High-capacity Storage Unit Processor Experimental Targeting Computer Hackware System Mapper Protection Centrium Medium Armor Plating Weapon Enhanced Nova Cannon Energy Gun Dispersion Rifle Energy Cannon Enhanced Nova Cannon Ballistic Gun Autogun Ballistic Cannon Compact Mass Driver Launcher Long-range Missile Launcher Special Weapon RU-N14's Throwing Claymores Impact Weapon Power Maul Slashing Weapon Greatsword Piercing Weapon CR-A16's Behemoth Slayer Special Melee Weapon Datajack Build | -11 -10 -10 -8 -7 -7 -7 -7 -6 -6 -6 -6 -6 -6 -6 -6 -5 -5 -5 -5 -4 -4 -4 -4 -4 -3 -3 -3 -3 -2 -2 -1 -1 -1 ------- Run | Jun Mat Sub Mat Fac Low Low Zio Pro Fac Was Fac Ext Cet Arc Hub Fac Upp Upp War Pro Fac Upp Upp Zhi Pro Res Arm Lab Res Tes Acc Com Ac0 Slots Evolved 18 | . . . 4 2 . . . . 2 . . . . . . 2 . . . . 2 . . . . 2 . . 2 . 2 . . Power 3 | . . . . . . . . . . . . . . . . 1 . . . . . . . . . . . . 1 . 1 . . Propulsion 4 | . . . 2 . . . . . 1 . . . . . . . . . . . 1 . . . . . . . . . . . . Utility 10 | . . . 2 2 . . . . 1 . . . . . . 1 . . . . . . . . . 2 . . 1 . 1 . . Weapon 1 | . . . . . . . . . . . . . . . . . . . . . 1 . . . . . . . . . . . . Parts Attached 681 | 3 12 50 39 17 7 3 5 12 29 1 15 10 10 13 21 42 20 10 23 12 28 2 6 6 14 20 20 6 18 38 28 115 26 Power 46 | . 2 4 2 . 1 . 1 . 6 . 2 . 1 . 1 4 . . 1 . . . . 1 . . . . 3 2 2 12 1 Engine 12 | . 1 4 1 . 1 . 1 . 3 . 1 . . . . . . . . . . . . . . . . . . . . . . Core 7 | . 1 . 1 . . . . . 3 . 1 . . . . . . . . . . . . . . . . . 1 . . . . Reactor 27 | . . . . . . . . . . . . . 1 . 1 4 . . 1 . . . . 1 . . . . 2 2 2 12 1 Propulsion 113 | 2 1 8 15 3 . 1 . 1 8 1 1 4 2 7 4 5 1 . 3 . 4 . . . 1 5 7 1 1 1 1 22 3 Treads 24 | 2 . 5 9 . . 1 . . . . . 4 2 . . . . . . . . . . . . . . . . . . 1 . Leg 68 | . . . . . . . . 1 2 . . . . 7 4 5 1 . 3 . 4 . . . 1 5 7 1 1 1 1 21 3 Wheel 6 | . 1 3 1 . . . . . . . 1 . . . . . . . . . . . . . . . . . . . . . . Hover 14 | . . . 4 3 . . . . 6 1 . . . . . . . . . . . . . . . . . . . . . . . Flight 1 | . . . 1 . . . . . . . . . . . . . . . . . . . . . . . . . . . . . . Utility 280 | . 2 7 10 9 4 . 1 6 11 . 5 4 3 4 9 20 11 4 7 3 12 2 2 2 11 14 7 3 10 29 15 43 10 Device 209 | . 1 3 5 2 2 . 1 5 7 . 2 3 . 4 6 14 8 3 4 2 8 2 2 1 11 11 7 2 10 28 14 34 7 Storage 12 | . 1 1 1 . . . . . 1 . . . . . . 2 . . . . . . . . . 1 . . . . . 4 1 Processor 14 | . . 1 . 1 . . . . . . 1 1 . . 1 2 . 1 1 . . . . . . 1 . . . . 1 2 1 Hackware 13 | . . . 1 3 . . . . . . 1 . . . . 2 . . . . 2 . . . . 1 . . . 1 . 2 . Protection 32 | . . 2 3 3 2 . . 1 3 . 1 . 3 . 2 . 3 . 2 1 2 . . 1 . . . 1 . . . 1 1 Artifact . | . . . . . . . . . . . . . . . . . . . . . . . . . . . . . . . . . . Weapon 242 | 1 7 31 12 5 2 2 3 5 4 . 7 2 4 2 7 13 8 6 12 9 12 . 4 3 2 1 6 2 4 6 10 38 12 Energy Gun 12 | . . 2 7 . . . . . . . . . . . . . 1 . 1 . 1 . . . . . . . . . . . . Energy Cannon 102 | . . 8 . . . . 1 . 1 . 1 1 1 1 4 6 4 3 6 7 11 . 2 2 1 . 3 1 3 4 6 23 2 Ballistic Gun 24 | 1 5 8 4 . . . . . . . . . 2 1 1 2 . . . . . . . . . . . . . . . . . Ballistic Cannon 19 | . . . . . . . . . . . . . . . . . . . . . . . . . . . . . . . 2 8 9 Launcher 32 | . 2 6 . 2 1 1 . 1 . . . . . . . . 1 2 3 2 . . 2 . 1 . 2 . . 1 . 4 1 Special Weapon 13 | . . . . . . . 1 1 1 . 3 . 1 . . 2 1 1 1 . . . . . . . . . . . . 1 . Impact Weapon 22 | . . 7 1 2 . . 1 3 1 . . . . . 2 3 1 . 1 . . . . . . . . . . . . . . Slashing Weapon 3 | . . . . 1 1 1 . . . . . . . . . . . . . . . . . . . . . . . . . . . Piercing Weapon 14 | . . . . . . . . . 1 . 3 1 . . . . . . . . . . . 1 . 1 . 1 1 1 2 2 . Special Melee Weapon 1 | . . . . . . . . . . . . . . . . . . . . . . . . . . . 1 . . . . . . Unidentified Prototypes 45 | . . . 4 . . . 1 . . . 1 . 3 1 2 6 . . 4 . 2 . . 2 . 4 1 3 3 5 . 3 . Corrupted Parts 7 | . . . . . . . . . . . . . 1 . 2 1 . . . 1 . . . . . . . . . . . 2 . System Corruption 38 | . . . . . . . . . . . . . 10 . 13 3 . . . 2 . . . . . . . . . . . 10 . Parts Lost 57 | . . 8 1 . . 1 . 1 5 1 4 . . . 11 . . . 2 . 1 . . . . 1 . . . . 2 4 15 Power 5 | . . . . . . . . . 1 . 1 . . . 1 . . . . . . . . . . . . . . . . 1 1 Propulsion 15 | . . 5 1 . . 1 . 1 . . 2 . . . 3 . . . . . . . . . . . . . . . . 1 1 Utility 26 | . . 1 . . . . . . 4 1 1 . . . 2 . . . 2 . . . . . . 1 . . . . 2 2 10 Weapon 11 | . . 2 . . . . . . . . . . . . 5 . . . . . 1 . . . . . . . . . . . 3 Highest Loss Streak 9 | . . 2 1 . . 1 . 1 4 1 2 . . . 9 . . . 1 . 1 . . . . 1 . . . . 2 2 7 To Critical Strikes 4 | . . 2 . . . 1 . . . . . . . . . . . . . . . . . . . . . . . . . . 1 Average Slot Usage (%) 92 | . 91 96 96 95 92 90 95 94 95 87 77 89 96 89 96 99 100 100 96 94 91 94 94 91 90 89 89 89 88 93 91 89 82 Engine 2 | . 3 8 4 7 7 7 7 7 4 6 2 . . . . . . . . . . . . . . . . . . . . . . Core 1 | . 10 5 4 . . . . . 1 . 2 6 2 . . . . . . . . . . . . . . . . 2 . . . Reactor 5 | . . . . . . . . . . . . . 3 6 6 11 11 11 9 5 5 5 5 7 10 9 9 8 10 9 12 12 11 Treads 5 | . 18 20 28 . . 3 7 7 1 . . 10 23 9 . . . . . . . . . . . . . . . . . . 2 Leg 15 | . . . . . . . . 1 3 . . . . 8 30 29 29 29 29 29 29 31 31 30 30 27 27 29 28 29 26 24 19 Wheel 1 | . 9 6 5 . . . . . . . 3 6 6 4 . . . . . . . . . . . . . . . . . . . Hover 4 | . . . . 30 30 25 23 17 27 30 23 12 . . . . . . . . . . . . . . . . . . . . . Device 13 | . 5 6 15 7 5 7 9 14 19 30 20 12 6 5 11 11 17 15 10 11 9 15 15 14 16 20 17 16 14 14 18 21 16 Storage 6 | . 14 14 9 7 7 7 7 7 6 6 6 6 6 6 6 6 5 5 5 5 5 5 5 5 5 4 4 4 4 4 3 3 3 Processor 6 | . . . . 7 7 7 7 7 4 . 2 8 13 13 8 11 11 12 17 17 14 10 10 10 8 5 9 8 8 8 7 4 13 Hackware 6 | . . . . 15 15 15 12 7 6 6 7 13 13 13 13 8 5 5 5 5 5 5 5 5 5 9 9 8 8 8 7 4 . Protection 4 | . . 4 9 5 9 7 7 7 6 . . 4 5 6 5 5 4 5 5 5 4 5 5 5 5 4 4 3 4 4 3 3 3 Energy Cannon 5 | . . 5 . . . . 2 7 3 . 3 5 4 . 7 5 7 4 5 8 13 15 14 12 9 4 7 6 6 10 4 3 . Ballistic Gun 3 | . 27 16 11 . . . . . . . . . 7 12 2 . . . . . . . . . . . . . . . . . . Impact Weapon 1 | . . 5 2 4 . . 2 3 4 6 . . . . 1 3 . . 3 . . . . . . . . . . . . . . Naked Turns . | . . . . . . . . . . . . . . . . . . . . . . . . . . . . . . . . . . Heaviest Build 236 | 12 32 76 65 36 40 31 41 48 78 68 71 72 85 85 87 108 111 106 107 103 131 133 125 119 132 182 175 179 217 223 224 236 179 Greatest Support 239 | 40 40 40 80 36 34 34 25 25 69 69 66 12 12 121 134 134 116 114 136 136 164 164 164 164 164 190 180 210 212 212 212 239 205 Greatest Overweight (x) 7 | . 2 5 6 . 1 1 1 2 2 1 5 5 7 6 1 1 . . . . . . . . . 1 1 . 1 1 1 1 1 Average Overweight (x) . | . 1 2 2 . . . 1 1 . . 3 5 6 2 . . . . . . . . . . . . . . . . . . . Largest Inventory Capacity 25 | 8 15 20 20 10 10 10 10 10 20 20 20 20 20 20 20 20 20 20 20 20 20 20 20 20 20 25 25 25 25 25 25 25 20 Average Capacity 19 | 8 12 18 19 10 10 10 10 10 17 20 20 20 20 20 20 20 20 20 20 20 20 20 20 20 20 24 25 25 25 25 25 23 20 Most Carried 25 | 6 12 20 20 10 10 10 10 10 16 17 20 20 20 20 20 20 20 20 20 20 20 20 20 20 20 25 25 25 24 25 25 25 19 Average Carried 18 | 4 9 16 19 9 9 9 9 9 11 16 17 19 19 19 18 19 20 19 19 19 19 19 19 19 19 23 24 24 22 23 24 23 14 Final Capacity 25 | 8 15 20 10 10 10 10 10 10 20 20 20 20 20 20 20 20 20 20 20 20 20 20 20 20 20 25 25 25 25 25 25 20 20 Final Carried 25 | 3 12 17 10 10 9 10 10 9 16 16 19 20 20 20 18 20 20 20 19 20 20 20 20 20 20 25 25 25 23 25 24 18 3 Class Distribution -------------------- 27% | Hacker-Mutant 21% | Mutant 15% | Scavenger-Mutant 10% | Generator-Mutant 5% | Scavenger-Skirmisher 4% | Generator-Gunner 3% | Scavenger-Assassin 3% | Scavenger-Tank Dominant Class ---------------- Mutant | -10/Materials Mutant | -10/Subcaves Scavenger-Mutant | -8/Materials Hacker-Mutant | -7/Factory Hacker-Mutant | -7/Lower Caves Hacker-Mutant | -7/Lower Caves Hacker-Mutant | -7/Zion Mutant | -6/Proximity Caves Mutant | -6/Factory Mutant | -6/Waste Mutant | -6/Factory Hacker-Mutant | -6/Extension Commander-Mutant | -6/Cetus Scavenger-Mutant | -6/Archives Scavenger-Mutant | -6/Hub_04(d) Scavenger-Mutant | -5/Factory Scavenger-Skirmisher | -5/Upper Caves Scavenger-Skirmisher | -5/Upper Caves Scavenger-Assassin | -5/Warlord Scavenger-Mutant | -4/Proximity Caves Scavenger-Mutant | -4/Factory Scavenger-Skirmisher | -4/Upper Caves Scavenger-Skirmisher | -4/Upper Caves Scavenger-Skirmisher | -4/Zhirov Scavenger-Tank | -3/Proximity Caves Hacker-Mutant | -3/Research Hacker-Mutant | -3/Armory Hacker-Mutant | -3/Lab Generator-Mutant | -2/Research Hacker-Mutant | -2/Testing Hacker-Mutant | -1/Access Generator-Mutant | -1/Command Generator-Mutant | -1/Access_0 Resources | -11 -10 -10 -8 -7 -7 -7 -7 -6 -6 -6 -6 -6 -6 -6 -6 -5 -5 -5 -5 -4 -4 -4 -4 -4 -3 -3 -3 -3 -2 -2 -1 -1 -1 ----------- Run | Jun Mat Sub Mat Fac Low Low Zio Pro Fac Was Fac Ext Cet Arc Hub Fac Upp Upp War Pro Fac Upp Upp Zhi Pro Res Arm Lab Res Tes Acc Com Ac0 Matter Collected 11240 | 200 496 1009 502 192 232 170 20 158 268 . 75 193 124 434 384 524 251 197 364 165 265 40 75 60 165 210 198 . 165 222 850 2340 692 Remotely . | . . . . . . . . . . . . . . . . . . . . . . . . . . . . . . . . . . Salvage Created 23646 | . 571 612 1307 292 192 63 . 421 657 . 357 758 12 891 1299 1108 450 290 864 553 865 77 100 126 384 265 1426 . 800 1715 1675 5023 493 Parts 1032 | . 40 42 91 12 11 4 . 23 18 . 31 37 1 32 60 46 11 15 31 21 31 2 7 1 21 12 55 . 50 60 79 178 10 Haulers Intercepted 9 | . 1 . 3 . . . . . . . . . . . . 1 . . . . 2 . . . . . . . 2 . . . . Recyclers Shooed 12 | . . . 3 . . . . . 1 . 1 2 . . . 2 . . . . . . . . . . . . . 1 1 1 . Parts Field Recycled . | . . . . . . . . . . . . . . . . . . . . . . . . . . . . . . . . . . Retrieved Matter . | . . . . . . . . . . . . . . . . . . . . . . . . . . . . . . . . . . Parts Self-Destructed 109 | . . 7 . . 6 10 . 15 . . . . . . . . 9 8 . 10 . 10 13 1 20 . . . . . . . . Prevented 16 | . . . . . . . . 3 . . . . . . . . 4 . . 9 . . . . . . . . . . . . . Kills | -11 -10 -10 -8 -7 -7 -7 -7 -6 -6 -6 -6 -6 -6 -6 -6 -5 -5 -5 -5 -4 -4 -4 -4 -4 -3 -3 -3 -3 -2 -2 -1 -1 -1 ------- Run | Jun Mat Sub Mat Fac Low Low Zio Pro Fac Was Fac Ext Cet Arc Hub Fac Upp Upp War Pro Fac Upp Upp Zhi Pro Res Arm Lab Res Tes Acc Com Ac0 Combat Hostiles Destroyed 344 | . 9 21 22 4 5 4 . 14 13 . 7 9 . . 17 13 11 13 18 9 8 1 4 . 8 1 21 . 8 19 18 54 13 Melee 14 | . . 1 3 1 1 . . 1 4 . . . . . 1 1 . . . . . . . . . . . . . . . 1 . Guns 37 | . 4 5 18 . . . . . . . . . . . 8 2 . . . . . . . . . . . . . . . . . Cannons 126 | . . 7 . . . . . 5 1 . 2 7 . . 5 5 2 . 3 1 3 1 1 . 4 . 16 . 6 13 14 23 7 AOE 111 | . 5 8 . 3 4 4 . 8 3 . 4 . . . . 4 8 13 15 4 . . 3 . 3 . 1 . . . 1 15 5 Classes Destroyed 29 | . 7 3 5 1 1 . . 3 1 . . . . . 1 . . . 4 . . . . . . . 1 . 2 . . . . Worker 10 | . 3 . . 2 . . . . . . 1 . . . 1 1 . . . . . . . . . . . . . . . 2 . Builder 12 | . . . 4 . . . . . . . 3 2 . . 2 1 . . . . . . . . . . . . . . . . . Tunneler 6 | . 2 . . 1 . . . . 1 . . . . . . . . . . . 1 . . . . . . . . . 1 . . Hauler 9 | . 1 . 3 . . . . . . . . . . . . 1 . . . . 2 . . . . . . . 2 . . . . Recycler 18 | . 2 . 2 2 . . . . . . . . . . 1 2 . . . . . . . . . 1 . . . 2 2 4 . Minesweeper 2 | . . . . . . . . 1 . . . . . . . . 1 . . . . . . . . . . . . . . . . Mechanic 4 | . . . 1 . . . . . 1 . . . . . . . . . . . . . . . . . . . . . . 2 . Operator 9 | . . . 1 1 . . . . 1 . . . . 4 . . . . . . 1 . . . . . 1 . . . . . . Drone 2 | . . . . . . . . 2 . . . . . . . . . . . . . . . . . . . . . . . . . Watcher 23 | . 2 . 4 1 . . . . . . 1 1 1 . 1 4 . . . . 1 . . . . 1 . . 1 2 1 2 . Swarmer 70 | . 3 4 9 . 4 4 . 6 1 . . 3 . . . 5 4 4 2 1 . . 3 . 3 . . . . 4 1 9 . Saboteur 2 | . . . . . . . . . . . . . . . . . . . . . . . . . . . 1 . . . . 1 . Grunt 112 | . 6 . 8 3 1 . . 4 8 . 3 2 . . 8 1 5 9 9 4 3 1 1 . . . 4 . . 10 7 15 . Brawler 8 | . . . . . . . . 1 2 . . . . . . 1 2 . . . . . . . . . 2 . . . . . . Duelist 11 | . . . . . . . . . . . . . . . . . . . 1 . 1 . . . . . 5 . . . . 4 . Protector 3 | . . . . . . . . . . . . . . . . . . . 2 . . . . . . . 1 . . . . . . Sentry 23 | . . . 4 . . . . 1 . . 2 2 . . 5 2 . . . 1 . . . . . . 2 . . . 2 2 . Demolisher 1 | . . . . . . . . . . . . . . . . . . . . . . . . . . . . . 1 . . . . Specialist 2 | . . . . . . . . . . . . . . . . . . . 1 . . . . . . . 1 . . . . . . Hunter 21 | . . . 1 . . . . . . . . . . . . . . . 2 3 4 . . . 2 . 3 . . . . 6 . Programmer 41 | . . . . 1 . . . . 1 . 1 . . . . 4 . . . . . . . . 3 . 2 . 6 5 7 11 . Heavy 2 | . . . . . . . . . . . . . . . 1 . . . . . . . . . . . . . . . . 1 . Behemoth 7 | . . . . . . . . . 1 . 1 2 . . . . . . . . . . . . . 1 . . . . 1 1 . M Guard 1 | . . . . . . . . . . . . . . . . . . . . . . . . . . . . . . . . 1 . Enhanced Grunt 13 | . . . . . . . . . . . . . . 5 . . . . . . . . . . . . . . . . . . 8 Enhanced Sentry 1 | . . . . . . . . . . . . . . . . . . . . . . . . . . . . . . . . . 1 Enhanced Hunter 2 | . . . . . . . . . . . . . . . . . . . . . . . . . . . . . . . . . 2 Lightning 3 | . . . . . . . . . . . . . . . 3 . . . . . . . . . . . . . . . . . . Combat Programmer 2 | . . . . . . . . . . . . . . . . . . . . . . . . . . . . . . . . 2 . Striker 1 | . . . . . . . . . . . . . . . . . . . . . . . . . . . . . 1 . . . . Executioner 1 | . . . . . . . . . . . . . . . . . . . 1 . . . . . . . . . . . . . . Artisan 2 | . . 2 . . . . . . . . . . . . . . . . . . . . . . . . . . . . . . . Cobbler 1 | . . 1 . . . . . . . . . . . . . . . . . . . . . . . . . . . . . . . Subdweller 17 | . . 17 . . . . . . . . . . . . . . . . . . . . . . . . . . . . . . . Packrat 2 | . . . . . 1 . . . . . . . . . . . 1 . . . . . . . . . . . . . . . . Samaritan 2 | . . . . . 2 . . . . . . . . . . . . . . . . . . . . . . . . . . . . Thug 3 | . . . . . . . . . . . . . . 3 . . . . . . . . . . . . . . . . . . . Savage 1 | . . . . . . . . . . . . . . 1 . . . . . . . . . . . . . . . . . . . Guerrilla 1 | . . . . . . . . . . . . . . 1 . . . . . . . . . . . . . . . . . . . Commander 1 | . . . . . . . . . . . . . . . . . . . . . . . . . . . . . . . . 1 . Best Kill Streak 11 | . 4 4 8 4 4 4 . 5 3 . 8 5 1 1 5 5 4 5 6 5 4 1 4 . 5 1 7 . 6 5 8 11 3 Combat Bots Only 9 | . 3 4 5 3 4 4 . 5 3 . 4 3 . . 4 5 4 5 6 5 4 1 4 . 5 1 7 . 6 5 4 9 3 Max Kills in Single Turn 8 | . 2 3 2 4 2 3 . 4 1 . 3 1 1 1 2 4 2 4 2 2 1 1 3 . 3 1 1 . 1 1 1 8 2 Gunslinging 1 | . . . 1 . . . . . . . . . . . . . . . . . . . . . . . . . . . . . . Exploded 6 | . 2 3 . 3 2 3 . 3 1 . 3 . . . . 4 2 4 2 2 . . 3 . 3 . 1 . . . 1 6 2 Melee 1 | . . 1 1 1 1 . . 1 1 . . . . . 1 1 . . . . . . . . . . . . . . . 1 . Uniques/NPCs Destroyed 3 | . . . . . . . . . . . . . . . . . . . . . . . . . . . . . . . . 1 2 MAIN.C Shell (-1/Command) A8 (-1/Access_0) A6 (-1/Access_0) Combat | -11 -10 -10 -8 -7 -7 -7 -7 -6 -6 -6 -6 -6 -6 -6 -6 -5 -5 -5 -5 -4 -4 -4 -4 -4 -3 -3 -3 -3 -2 -2 -1 -1 -1 -------- Run | Jun Mat Sub Mat Fac Low Low Zio Pro Fac Was Fac Ext Cet Arc Hub Fac Upp Upp War Pro Fac Upp Upp Zhi Pro Res Arm Lab Res Tes Acc Com Ac0 Damage Taken 25181 | . 247 1364 873 382 111 138 . 360 1379 47 353 260 105 . 2919 528 373 217 156 376 820 46 8 . 190 64 1039 . 418 872 801 3807 6928 Core 3205 | . 64 148 74 47 . 27 . 6 249 . 96 46 . . 372 53 26 58 18 60 125 12 . . . . 130 . 56 55 36 282 1165 Absorbed by Shields 5082 | . . . 61 . . . . . 12 . . 321 14 . . . 40 59 22 . . . 8 . 135 22 1102 . 288 73 266 1540 1119 Reduced by Siege Mode 68 | . . . . . . . . . . . . . . . . . . . . . . . . . . . . . . . . . 68 Redirected to Shielding 137 | . . . . . . . . . . . . . . . . . . . . . . . . . . . . . . . . . 137 Ignored by Resistances 3190 | . . . . . . . . . . . . . . . . 741 . . . . 15 . . . 201 . 17 . 464 572 304 876 . Regen/Repaired (Parts) 3826 | . . . . . . . 329 . 105 . . . . . . . . . 400 . 1463 . . . . . . . 96 239 234 960 . Core Remaining (%) 64 | 100 . 15 86 . . . . 88 . . . . . . 10 . . . . 78 . . . . 88 . . 82 . 92 . . 2 Volleys Fired 1224 | . 42 84 70 3 4 3 . 19 6 . 12 41 6 59 73 37 25 9 18 16 31 2 6 . 14 16 66 12 51 96 67 205 131 Largest 3 | . 2 2 2 1 1 1 . 1 1 . 1 1 2 2 2 2 2 1 2 2 3 3 3 . 2 1 2 1 1 1 1 2 3 Hottest 293 | . 46 110 116 61 33 33 . 75 75 . 90 90 75 75 180 160 178 90 162 162 284 293 293 . 225 40 210 40 120 120 120 240 252 Shots Fired 1672 | . 80 132 140 3 4 3 . 19 6 . 12 41 9 96 123 68 41 11 25 28 63 6 10 . 27 16 100 12 51 97 67 217 165 Gun 441 | . 76 69 140 1 . . . . . . . . 6 81 52 13 1 . . . 2 . . . . . . . . . . . . Cannon 1122 | . . 41 . . . . . 8 3 . 5 41 3 15 71 54 32 3 16 25 61 6 9 . 26 16 99 12 51 97 67 204 157 Launcher 71 | . 4 22 . 2 4 3 . 1 . . . . . . . . 6 6 4 3 . . 1 . 1 . 1 . . . . 5 8 Special 38 | . . . . . . . . 10 3 . 7 . . . . 1 2 2 5 . . . . . . . . . . . . 8 . Kinetic 555 | . 76 71 82 2 . . . . . . . . 6 81 52 13 . . . . . . . . . . . . . . 16 17 139 Thermal 796 | . . 42 36 1 . . . 8 3 . 5 41 . . 71 54 33 3 . 1 20 6 9 . 26 16 99 12 38 81 51 126 14 Explosive 96 | . 4 19 . . 4 3 . 11 3 . 7 . . . . 1 8 8 9 3 . . 1 . 1 . 1 . . . . 5 8 Electromagnetic 217 | . . . 22 . . . . . . . . . 3 15 . . . . 16 24 43 . . . . . . . 13 16 . 61 4 Impact 8 | . . . . . . . . . . . . . . . . . . . . . . . . . . . . . . . . 8 . Robot Hit Streak 33 | . 12 14 6 . . . . 4 5 . 14 13 15 33 19 13 7 8 16 26 16 2 3 . 6 5 11 . 4 20 14 20 31 Robot Miss Streak 8 | . 3 3 3 1 2 3 . 2 2 . . 2 1 1 2 2 1 . 1 2 2 . 1 . 1 1 4 . 4 2 3 8 4 Penetration Max 1 | . . . . . . . . . . . . . 1 1 1 1 . . . . . . . . . . . . . . 1 1 . Secondary Targets 4 | . 1 . 2 . . . . . . . . . . . . . . . . . . . . . 1 . . . . . . . . Max Gunslinging Chain 1 | . 1 . 1 . . . . . . . . . . . . . . . . . . . . . 1 . . . . . . . . Capacitor 74 | . . . . . . . . . . . . . . . . . . . . . . . . . . . . . 34 40 . . . Shots Hit Robots 1162 | . 47 89 100 13 6 . . 13 37 . 12 33 7 86 94 58 23 5 21 20 43 1 4 1 18 7 61 . 24 36 41 129 133 Core Hits 694 | . 24 34 50 9 8 4 . 20 10 . 20 14 2 32 36 27 18 22 36 13 15 1 7 . 9 4 28 . 11 22 55 98 65 Critical Kills 54 | . . 1 4 . . . . . . . . . . 2 5 3 2 . . . 1 . . . 1 . 4 . . 4 10 17 . Critical Parts Destroyed 56 | . . . 3 . . . . . 3 . . . 1 8 8 1 . . . . . . . . . . . . . . 16 16 . Critical Strikes 153 | . . 2 10 1 . . . 1 4 . 3 . 1 15 13 5 2 . 3 . 2 . . . 1 . 4 . 2 4 29 37 14 Burn 3 | . . . 3 . . . . . . . . . . . . . . . . . . . . . . . . . . . . . . Meltdown 21 | . . . . . . . . . . . . . . . 1 1 1 . . . 1 . . . 1 . 4 . . 4 1 7 . Destroy 82 | . . 2 1 . . . . . . . . . 1 14 8 1 1 . . . . . . . . . . . . . 28 26 . Blast 14 | . . . . . . . . . . . . . . . . . . . . . . . . . . . . . . . . . 14 Corrupt 9 | . . . . . . . . . . . . . . 1 . . . . 1 . 1 . . . . . . . 2 . . 4 . Smash 15 | . . . 6 . . . . . 3 . . . . . 4 2 . . . . . . . . . . . . . . . . . Sever 9 | . . . . 1 . . . 1 1 . 3 . . . . 1 . . 2 . . . . . . . . . . . . . . Melee Attacks 271 | . . 58 26 32 14 8 1 5 50 . 5 1 . . 15 27 1 . 16 . . . . 1 . 4 4 . . . 2 1 . Impact 207 | . . 58 26 19 . . . 5 40 . . . . . 15 27 1 . 16 . . . . . . . . . . . . . . Slashing 36 | . . . . 13 14 8 1 . . . . . . . . . . . . . . . . . . . . . . . . . . Piercing 27 | . . . . . . . . . 10 . 5 1 . . . . . . . . . . . 1 . 4 3 . . . 2 1 . Sneak Attacks 28 | . . 1 5 6 4 . . 1 5 . 1 . . . 1 3 . . . . . . . . . . 1 . . . . . . Combat Hostiles 1 | . . . . . . . . . 1 . . . . . . . . . . . . . . . . . . . . . . . . Follow-up Attacks . | . . . . . . . . . . . . . . . . . . . . . . . . . . . . . . . . . . Damage Inflicted 68080 | . 1091 3042 2822 1566 901 281 . 1542 2438 . 1498 896 233 2705 3901 2596 1741 1762 3884 1088 1569 34 353 . 1286 352 4979 . 1234 2721 2270 8531 10764 Guns 7636 | . 757 849 1514 . . . . . . . . . 147 2434 1453 436 27 . . . 19 . . . . . . . . . . . . Cannons 33823 | . . 622 . . . . . 75 62 . 94 896 86 271 2041 1073 533 . 503 630 1550 34 136 . 1066 352 4712 . 1234 2721 1746 5376 8010 Explosions 19624 | . 334 1391 124 627 353 281 . 1033 628 . 1022 . . . . 477 1096 1700 3258 458 . . 217 . 220 . 267 . . . 524 2860 2754 Melee 5737 | . . 180 1184 939 548 . . 137 1646 . 125 . . . 407 571 . . . . . . . . . . . . . . . . . Ramming 200 | . . . . . . . . . . . . . . . . . . . . . . . . . . . . . . . . 200 . Kinetic 15225 | . 757 849 785 233 . . . . . . . . 147 2434 1453 436 . . . . . . . . . . . . . . 294 280 7557 Thermal 22419 | . . 622 566 394 . . . 75 62 . 94 896 . . 2041 1073 716 . 143 . 380 34 136 . 1066 352 4886 . 1026 2131 1452 3871 403 Explosive 17620 | . 334 1391 . . 353 281 . 1033 628 . 811 . . . . 477 940 1700 3115 458 . . 217 . 220 . 93 . . . 491 2371 2707 Electromagnetic 5819 | . . . 287 . . . . . . . 211 . 86 271 . . . . 503 630 1189 . . . . . . . 208 590 33 1714 97 Impact 4382 | . . 180 1184 394 . . . 137 1414 . . . . . 407 571 . . . . . . . . . . . . . . . 95 . Slashing 2058 | . . . . 545 548 . . 297 102 . 257 . . . . 39 85 62 123 . . . . . . . . . . . . . . Piercing 357 | . . . . . . . . . 232 . 125 . . . . . . . . . . . . . . . . . . . . . . Highest Corruption 26 | . . . . 2 . . . . 1 5 5 1 10 10 26 4 4 4 4 2 . . . . . 1 2 2 1 2 1 8 1 Average Corruption 2 | . . . . 1 . . . . 1 5 3 1 10 5 6 2 4 4 4 2 . . . . . 1 1 2 1 1 1 1 1 Corruption Purged 30 | . . . . 2 . . . . 1 . 5 1 . 10 . . . . . . . . . . . . . . . . 1 10 . Corruption Blocked 89 | . . . . . . . . . . . . . . . . 8 . . . . . . . . . . 40 . 21 20 . . . Effects 138 | . . . . 2 . . . . . . 1 6 3 10 7 7 22 9 1 . . . . . . . 8 5 3 21 3 30 . Message Errors 31 | . . . . 2 . . . . . . . 2 2 2 1 . 5 1 . . . . . . . . . 1 1 8 1 5 . Matter Fused 31 | . . . . . . . . . . . . 2 . . 4 1 4 1 . . . . . . . . 3 3 1 4 1 7 . Heat Flow Errors 19 | . . . . . . . . . . . . 1 . 2 . . 5 . . . . . . . . . 1 1 . 3 . 6 . Energy Discharges 15 | . . . . . . . . . . . . . . . . 2 2 1 . . . . . . . . 2 . . 3 1 4 . Parts Rejected 2 | . . . . . . . . . . . . . . . . 1 . 1 . . . . . . . . . . . . . . . Parts Fused 2 | . . . . . . . . . . . . . . . . . . . . . . . . . . . . . 1 . . 1 . Data Loss (minor) 17 | . . . . . . . . . . . 1 1 . 2 1 2 2 2 1 . . . . . . . 1 . . 2 . 2 . Data Loss (major) 2 | . . . . . . . . . . . . . . . . . . 1 . . . . . . . . . . . . . 1 . Misfires 9 | . . . . . . . . . . . . . 1 1 . 1 1 2 . . . . . . . . 1 . . 1 . 1 . Alerts 4 | . . . . . . . . . . . . . . . . . 3 . . . . . . . . . . . . . . 1 . Misdirections 1 | . . . . . . . . . . . . . . . 1 . . . . . . . . . . . . . . . . . . Weapon Failures 5 | . . . . . . . . . . . . . . 3 . . . . . . . . . . . . . . . . . 2 . Overload Shots 58 | . . . . . . . . . . . 1 1 . . 29 . . . . . . . . . 5 . 22 . . . . . . Effects 3 | . . . . . . . . . . . . . . . 1 . . . . . . . . . . . 2 . . . . . . Energy Bleed 1 | . . . . . . . . . . . . . . . 1 . . . . . . . . . . . . . . . . . . Heat Surge 2 | . . . . . . . . . . . . . . . . . . . . . . . . . . . 2 . . . . . . Overflow Damage 4317 | . 6 88 193 315 238 77 . 228 517 . 82 . . . 374 276 130 43 120 . 49 . 3 . 87 . 579 . 94 72 242 326 178 Projectiles 1546 | . . . . . . . . . . . . . . . 120 41 39 . . . 49 . . . 87 . 544 . 94 72 206 171 123 Explosions 1017 | . 6 20 . 94 10 77 . 148 58 . 10 . . . . 56 91 43 120 . . . 3 . . . 35 . . . 36 155 55 Melee 1754 | . . 68 193 221 228 . . 80 459 . 72 . . . 254 179 . . . . . . . . . . . . . . . . . Knockbacks 70 | . . 2 . 1 . . . . 7 . . . . . 3 1 . . . . . . . . . . . . . . 13 4 39 Impact 14 | . . 2 . 1 . . . . 7 . . . . . 3 1 . . . . . . . . . . . . . . . . . Kinetic 56 | . . . . . . . . . . . . . . . . . . . . . . . . . . . . . . . 13 4 39 Secondary . | . . . . . . . . . . . . . . . . . . . . . . . . . . . . . . . . . . Self-Inflicted Damage 689 | . . 22 . 48 . . . . . . 5 . . . . . 97 41 . . . . . . 35 . 84 . . . . 278 79 Shots 11 | . . 2 . 1 . . . . . . 1 . . . . . 2 1 . . . . . . 1 . 1 . . . . 1 1 Rammed . | . . . . . . . . . . . . . . . . . . . . . . . . . . . . . . . . . . Targets Rammed . | . . . . . . . . . . . . . . . . . . . . . . . . . . . . . . . . . . Kicked . | . . . . . . . . . . . . . . . . . . . . . . . . . . . . . . . . . . Crushed . | . . . . . . . . . . . . . . . . . . . . . . . . . . . . . . . . . . Highest Temperature 431 | . 46 70 198 24 . . . . 24 . 32 259 40 227 82 370 179 14 241 24 286 120 111 . 218 76 309 197 330 431 250 259 155 Average Temperature 77 | . 13 23 71 11 . . . . 18 . 17 110 14 108 27 127 60 8 118 9 87 62 68 . 106 22 79 70 103 99 60 60 42 Received Heat Transfer 3199 | . 111 240 241 135 9 . . 51 441 . 84 39 36 . 759 81 117 67 15 27 127 40 . . . 16 81 . 20 54 83 281 44 Effects 8 | . . . . . . . . . . . . . . 4 . 1 . . . . . . . . . . . . . 3 . . . Shutdowns 1 | . . . . . . . . . . . . . . . . . . . . . . . . . . . . . . 1 . . . Energy Bleed 1 | . . . . . . . . . . . . . . 1 . . . . . . . . . . . . . . . . . . . Interference 5 | . . . . . . . . . . . . . . 3 . . . . . . . . . . . . . . . 2 . . . Matter Decay 1 | . . . . . . . . . . . . . . . . 1 . . . . . . . . . . . . . . . . . Siege Activations 6 | . . . . . . . . . . . . . . . . . . . . . . . . . . . . . . . . . 6 Total Turns 69 | . . . . . . . . . . . . . . . . . . . . . . . . . . . . . . . . . 69 Longest Duration 21 | . . . . . . . . . . . . . . . . . . . . . . . . . . . . . . . . . 21 Robots Corrupted 25 | . . . . . . . . . . . . . . 2 . . . . . 4 5 . . . . . . . 2 3 . 8 1 Combat Hostiles 22 | . . . . . . . . . . . . . . . . . . . . 4 5 . . . . . . . 2 2 . 8 1 Parts Fried 75 | . . . 8 6 . . . 2 9 . . . . 4 5 5 . . 2 6 10 . . . . . . . . 5 . 13 . Impact Corruptions 45 | . . 2 6 6 . . . 1 17 . . . . . 6 6 . . . . . . . . . . . . . . . 1 . Robots Melted 24 | . . . . . . . . . . . . 1 . . 2 1 1 . . . 1 . . . 1 . 4 . . 4 2 7 . Combat Hostiles 22 | . . . . . . . . . . . . 1 . . 2 1 1 . . . . . . . 1 . 4 . . 4 2 6 . Parts Melted 63 | . . . 1 . . . . . . . . 7 . . 5 10 1 . 2 . 2 . . . 1 . 7 . . 10 6 11 . Heat Transferred 15063 | . . 814 1186 250 . . . 111 74 . 87 1197 . . 2024 1800 487 . 100 . 311 37 174 . 370 . 75 . 370 1628 1110 2697 161 Parts Sabotaged 2 | . . . . . . . . . . . . . . . . . . . . . . . . . . . . . . . . 2 . Parts Stolen . | . . . . . . . . . . . . . . . . . . . . . . . . . . . . . . . . . . Parts Stripped . | . . . . . . . . . . . . . . . . . . . . . . . . . . . . . . . . . . Power Chain Reactions 11 | . . . 1 . . . . . . . 1 . . . . . 3 . 1 . . . . . . . 1 . . . . 3 1 Missiles Intercepted . | . . . . . . . . . . . . . . . . . . . . . . . . . . . . . . . . . . Alert | -11 -10 -10 -8 -7 -7 -7 -7 -6 -6 -6 -6 -6 -6 -6 -6 -5 -5 -5 -5 -4 -4 -4 -4 -4 -3 -3 -3 -3 -2 -2 -1 -1 -1 ------- Run | Jun Mat Sub Mat Fac Low Low Zio Pro Fac Was Fac Ext Cet Arc Hub Fac Upp Upp War Pro Fac Upp Upp Zhi Pro Res Arm Lab Res Tes Acc Com Ac0 Peak Influence 1475 | . 185 . 519 556 . . . . 182 47 359 533 1110 583 513 634 . . . . 206 . . . . 123 383 . 351 247 682 1475 . Initial 376 | . . . 20 119 . . . . . 32 25 92 298 376 144 251 . . . . . . . . . . 4 . . 174 16 362 . Average 331 | . 58 . 254 416 . . . . 65 37 247 268 697 504 371 437 . . . . 83 . . . . 45 111 . 154 89 341 961 . Maximum Alert Level 4 | . . . 2 2 . . . . . . 1 2 4 2 2 2 . . . . 1 . . . . . 1 . 1 1 2 4 . Low Security (%) 41 | 100 100 . 40 8 . . . . 100 100 40 34 . . 11 . . . . . 91 . . . . 100 72 . 64 86 32 . . Level 1 17 | . . . 40 39 . . . . . . 59 42 8 12 39 30 . . . . 8 . . . . . 27 . 35 13 17 1 . Level 2 16 | . . . 19 52 . . . . . . . 23 19 87 48 69 . . . . . . . . . . . . . . 49 8 . Level 3 9 | . . . . . . . . . . . . . 71 . . . . . . . . . . . . . . . . . . 30 . Level 4 15 | . . . . . . . . . . . . . . . . . . . . . . . . . . . . . . . . 59 . Level 5 . | . . . . . . . . . . . . . . . . . . . . . . . . . . . . . . . . . . High Security . | . . . . . . . . . . . . . . . . . . . . . . . . . . . . . . . . . . Max Security . | . . . . . . . . . . . . . . . . . . . . . . . . . . . . . . . . . . Squads Dispatched 72 | . 3 . 3 4 . . . . 4 . 2 . . . 5 4 . . . . 6 . . . . 3 5 . 1 7 4 21 . Investigation 14 | . . . 2 3 . . . . 1 . 1 . . . . . . . . . 2 . . . . 2 . . . 1 . 2 . Extermination 26 | . . . . 1 . . . . 1 . 1 . . . 1 2 . . . . 4 . . . . . 3 . . 4 2 7 . Reinforcement 23 | . 3 . 1 . . . . . 2 . . . . . 4 1 . . . . . . . . . 1 2 . 1 2 1 5 . Assault 8 | . . . . . . . . . . . . . . . . . . . . . . . . . . . . . . . 1 7 . Garrison 1 | . . . . . . . . . . . . . . . . 1 . . . . . . . . . . . . . . . . . Intercept . | . . . . . . . . . . . . . . . . . . . . . . . . . . . . . . . . . . Searches Triggered . | . . . . . . . . . . . . . . . . . . . . . . . . . . . . . . . . . . Construction Impeded 3 | . . . . . . . . . 1 . . . . . 1 1 . . . . . . . . . . . . . . . . . Haulers Reinforced 1 | . . . . . . . . . . . . . . . . . . . . . . . . . . . . . 1 . . . . Active Scanning Responses . | . . . . . . . . . . . . . . . . . . . . . . . . . . . . . . . . . . Cargo Convoy Interrupts . | . . . . . . . . . . . . . . . . . . . . . . . . . . . . . . . . . . Stealth | -11 -10 -10 -8 -7 -7 -7 -7 -6 -6 -6 -6 -6 -6 -6 -6 -5 -5 -5 -5 -4 -4 -4 -4 -4 -3 -3 -3 -3 -2 -2 -1 -1 -1 --------- Run | Jun Mat Sub Mat Fac Low Low Zio Pro Fac Was Fac Ext Cet Arc Hub Fac Upp Upp War Pro Fac Upp Upp Zhi Pro Res Arm Lab Res Tes Acc Com Ac0 Distress Signals 41 | . 2 . 2 . . . . . . . . 2 2 . 1 . 1 . . . . . . . . 3 4 . 7 1 2 14 . Communications Jammed 275 | . . . . . . . . . . . . . . . . . . . . . . . . . . 19 . . . 12 84 160 . Distress Signals 275 | . . . . . . . . . . . . . . . . . . . . . . . . . . 19 . . . 12 84 160 . Times Spotted 619 | . 23 24 35 18 9 8 . 12 17 6 8 30 14 22 27 19 10 12 26 9 16 4 7 . 8 13 41 . 17 24 27 106 27 Peak Tracking Total 11 | . 4 6 7 6 4 4 . 4 3 6 3 5 5 1 7 8 4 5 8 3 5 3 4 . 3 3 7 . 5 5 6 11 4 Tactical Retreats 28 | . 2 2 2 4 1 1 . 1 2 . . 1 . . . 1 1 . . . . . 1 . . . 4 . 1 1 3 . . Traps | -11 -10 -10 -8 -7 -7 -7 -7 -6 -6 -6 -6 -6 -6 -6 -6 -5 -5 -5 -5 -4 -4 -4 -4 -4 -3 -3 -3 -3 -2 -2 -1 -1 -1 ------- Run | Jun Mat Sub Mat Fac Low Low Zio Pro Fac Was Fac Ext Cet Arc Hub Fac Upp Upp War Pro Fac Upp Upp Zhi Pro Res Arm Lab Res Tes Acc Com Ac0 Traps Triggered 25 | . 1 . 2 . . . . . 2 . 2 4 . . . 2 . . . . 1 . . . . 1 1 . . 2 . 7 . Indirectly 1 | . . . . . . . . . . . 1 . . . . . . . . . . . . . . . . . . . . . . Trap Hack Attempts . | . . . . . . . . . . . . . . . . . . . . . . . . . . . . . . . . . . Triggered . | . . . . . . . . . . . . . . . . . . . . . . . . . . . . . . . . . . Disarmed 19 | . 6 . . . . . . . . . . 6 . . . . . . . . . . . . . . 3 . . 4 . . . Reprogrammed . | . . . . . . . . . . . . . . . . . . . . . . . . . . . . . . . . . . Reused 2 | . . . . . . . . . . . . . . . 1 . 1 . . . . . . . . . . . . . . . . Traps Extracted 3 | . . . . . . . . . . . . . . . 1 . 2 . . . . . . . . . . . . . . . . Installed 3 | . . . . . . . . . . . . . . . 2 . 1 . . . . . . . . . . . . . . . . Triggered 10 | . . . . . 1 . . 1 . . . . . . 1 . 1 . 4 . . . . . . . . . . . . 2 . Most Traps Carried 6 | . . 1 . . . . . 4 4 4 4 4 4 4 4 3 6 6 6 6 6 6 6 6 . . . . . . . . . Machines | -11 -10 -10 -8 -7 -7 -7 -7 -6 -6 -6 -6 -6 -6 -6 -6 -5 -5 -5 -5 -4 -4 -4 -4 -4 -3 -3 -3 -3 -2 -2 -1 -1 -1 ---------- Run | Jun Mat Sub Mat Fac Low Low Zio Pro Fac Was Fac Ext Cet Arc Hub Fac Upp Upp War Pro Fac Upp Upp Zhi Pro Res Arm Lab Res Tes Acc Com Ac0 Machines Disabled 49 | . 1 1 . 4 . . . . 1 . 9 . . 3 2 1 . . . . 1 . . . . . 6 1 3 2 4 7 3 Max in Single Turn 4 | . 1 1 . 4 . . . . 1 . 4 . . 1 1 1 . . . . 1 . . . . . 1 1 1 1 1 1 1 Garrison Access 7 | . . . . 1 . . . . . . 1 . . . . . . . . . . . . . . 1 . . 1 1 2 . . Network Hub 1 | . . . . . . . . . . . . . . . 1 . . . . . . . . . . . . . . . . . . Machines Repaired . | . . . . . . . . . . . . . . . . . . . . . . . . . . . . . . . . . . Machines Sabotaged . | . . . . . . . . . . . . . . . . . . . . . . . . . . . . . . . . . . Overloaded Fab Kills . | . . . . . . . . . . . . . . . . . . . . . . . . . . . . . . . . . . Hacking | -11 -10 -10 -8 -7 -7 -7 -7 -6 -6 -6 -6 -6 -6 -6 -6 -5 -5 -5 -5 -4 -4 -4 -4 -4 -3 -3 -3 -3 -2 -2 -1 -1 -1 --------- Run | Jun Mat Sub Mat Fac Low Low Zio Pro Fac Was Fac Ext Cet Arc Hub Fac Upp Upp War Pro Fac Upp Upp Zhi Pro Res Arm Lab Res Tes Acc Com Ac0 Machines Accessed 89 | . 1 2 6 8 . 1 . . 1 . 2 7 . . 4 3 . . . . 6 . . 4 . 8 4 . 1 14 7 10 . Terminals 58 | . 1 . 6 5 . . . . . . . 7 . . 4 2 . . . . 2 . . . . 4 3 . 1 9 5 9 . Fabricators 9 | . . . . 2 . . . . . . . . . . . . . . . . 2 . . . . 3 1 . . 1 . . . Repair Stations 7 | . . . . . . . . . 1 . 1 . . . . 1 . . . . 2 . . . . . . . . 1 . 1 . Recycling Units . | . . . . . . . . . . . . . . . . . . . . . . . . . . . . . . . . . . Scanalyzers 2 | . . . . . . . . . . . . . . . . . . . . . . . . . . . . . . 2 . . . Garrison Access 6 | . . . . 1 . . . . . . 1 . . . . . . . . . . . . . . 1 . . . 1 2 . . Total Hacks 347 | . 5 3 14 37 . 7 . . 3 . 4 25 . . 9 14 . . . . 44 . . 17 . 40 18 . 12 53 16 26 . Successful 207 | . 3 3 6 25 . 7 . . 2 . 2 10 . . 3 5 . . . . 30 . . 17 . 25 9 . 7 35 7 11 . Failed 139 | . 2 . 8 12 . . . . 1 . 2 14 . . 6 9 . . . . 14 . . . . 15 9 . 5 18 9 15 . Catastrophic 25 | . . . 3 1 . . . . . . . 3 . . 2 3 . . . . . . . . . . 1 . 1 2 1 8 . Database Lockouts 1 | . . . . . . . . . . . . 1 . . . . . . . . . . . . . . . . . . . . . Manual 129 | . . . 8 24 . . . . . . . 7 1 . 4 8 . . . . 8 . . . . 19 5 . 10 15 1 19 . Terminals 237 | . 5 . 14 27 . . . . . . . 25 . . 9 11 . . . . 9 . . . . 32 15 . 12 43 11 24 . Fabricators 31 | . . . . 9 . . . . . . . . . . . . . . . . 10 . . . . 7 3 . . 2 . . . Repair Stations 38 | . . . . . . . . . 3 . 2 . . . . 3 . . . . 25 . . . . . . . . 3 . 2 . Recycling Units . | . . . . . . . . . . . . . . . . . . . . . . . . . . . . . . . . . . Scanalyzers 3 | . . . . . . . . . . . . . . . . . . . . . . . . . . . . . . 3 . . . Garrison Access 11 | . . . . 1 . . . . . . 2 . . . . . . . . . . . . . . 1 . . . 2 5 . . Terminal Hacks 137 | . 3 3 6 11 . 7 . . . . . 10 . . 3 3 . . . . 4 . . 17 . 17 6 . 7 25 6 9 . Record 14 | . . 2 . . . 7 . . . . . . . . . . . . . . . . . 5 . . . . . . . . . Part Schematic 16 | . . . 1 3 . . . . . . . 2 . . . . . . . . 1 . . 4 . 2 . . 2 1 . . . Robot Analysis 7 | . . . . . . . . . . . . . . . . . . . . . 1 . . 4 . . . . . 1 1 . . Prototype ID Bank 17 | . 1 . 1 1 . . . . . . . 1 . . 1 1 . . . . . . . 4 . 3 1 . . 3 . . . Open Door 7 | . . . . . . . . . . . . 4 . . . . . . . . . . . . . . . . . . 3 . . Branch Access Points 6 | . . . 1 1 . . . . . . . . . . . . . . . . 1 . . . . 1 . . 1 . 1 . . Emergency Access Points 1 | . . . . . . . . . . . . . . . . . . . . . . . . . . 1 . . . . . . . Machine Index 1 | . . . . . . . . . . . . . . . . . . . . . . . . . . . . . . 1 . . . Terminal Index 6 | . . . . 1 . . . . . . . . . . 1 1 . . . . . . . . . 1 . . . 1 . 1 . Fabricator Index 1 | . . . . . . . . . . . . . . . . 1 . . . . . . . . . . . . . . . . . Garrison Index 2 | . . . . 1 . . . . . . . . . . . . . . . . . . . . . . . . . 1 . . . Alert Level 6 | . . . 1 . . . . . . . . . . . . . . . . . . . . . . 1 . . 1 2 . 1 . Unreport Threat 15 | . . . 1 . . . . . . . . . . . . . . . . . . . . . . 2 3 . 2 6 . 1 . Locate Traps 6 | . 1 . . . . . . . . . . 1 . . . . . . . . . . . . . 2 . . . 1 . 1 . Disarm Traps 4 | . 1 . . . . . . . . . . 1 . . . . . . . . . . . . . . 1 . . 1 . . . Extermination Status 1 | . . . . . . . . . . . . . . . . . . . . . . . . . . . . . . 1 . . . Assault Status 1 | . . . . . . . . . . . . . . . . . . . . . . . . . . . . . . 1 . . . Recall Investigation 1 | . . . . 1 . . . . . . . . . . . . . . . . . . . . . . . . . . . . . Recall Extermination 1 | . . . . . . . . . . . . . . . . . . . . . . . . . . . . . . . . 1 . Recall Reinforcements 1 | . . . . . . . . . . . . . . . . . . . . . . . . . . . . . . . . 1 . Recall Assault 1 | . . . . . . . . . . . . . . . . . . . . . . . . . . . . . . . . 1 . Hauler Manifests 6 | . . . 1 1 . . . . . . . . . . . . . . . . . . . . . 2 1 . . 1 . . . Registered Components 1 | . . . . . . . . . . . . . . . . . . . . . . . . . . . . . . 1 . . . Zone Layout 12 | . . . . 2 . . . . . . . 1 . . 1 . . . . . 1 . . . . 2 . . 1 3 1 . . Derelict Proto ID Bank 1 | . . 1 . . . . . . . . . . . . . . . . . . . . . . . . . . . . . . . Disengage Seal 2 | . . . . . . . . . . . . . . . . . . . . . . . . . . . . . . . . 2 . Fabricator Hacks 17 | . . . . 5 . . . . . . . . . . . . . . . . 5 . . . . 3 2 . . 2 . . . Network Status 4 | . . . . 1 . . . . . . . . . . . . . . . . 1 . . . . 1 1 . . . . . . Load Schematic 5 | . . . . 2 . . . . . . . . . . . . . . . . 2 . . . . . . . . 1 . . . Build 8 | . . . . 2 . . . . . . . . . . . . . . . . 2 . . . . 2 1 . . 1 . . . Repair Station Hacks 24 | . . . . . . . . . 2 . 1 . . . . 1 . . . . 17 . . . . . . . . 2 . 1 . Scan Component 15 | . . . . . . . . . 1 . 1 . . . . 1 . . . . 10 . . . . . . . . 1 . 1 . Repair 9 | . . . . . . . . . 1 . . . . . . . . . . . 7 . . . . . . . . 1 . . . Recycling Unit Hacks . | . . . . . . . . . . . . . . . . . . . . . . . . . . . . . . . . . . Scanalyzer 2 | . . . . . . . . . . . . . . . . . . . . . . . . . . . . . . 2 . . . Insert Component 2 | . . . . . . . . . . . . . . . . . . . . . . . . . . . . . . 2 . . . Garrison Access Hacks 5 | . . . . 1 . . . . . . 1 . . . . . . . . . . . . . . 1 . . . 1 1 . . Seal Access 5 | . . . . 1 . . . . . . 1 . . . . . . . . . . . . . . 1 . . . 1 1 . . Unauthorized Hacks 22 | . . . . 8 . . . . . . . . . . . 1 . . . . 4 . . . . 4 1 . . 3 . 1 . Terminals 14 | . . . . 5 . . . . . . . . . . . 1 . . . . 1 . . . . 3 . . . 3 . 1 . Track 1 | . . . . 1 . . . . . . . . . . . . . . . . . . . . . . . . . . . . . Assimilate 2 | . . . . 1 . . . . . . . . . . . . . . . . . . . . . 1 . . . . . . . Botnet 6 | . . . . 2 . . . . . . . . . . . . . . . . . . . . . 1 . . . 2 . 1 . Operators 5 | . . . . 1 . . . . . . . . . . . 1 . . . . 1 . . . . 1 . . . 1 . . . Fabricators 8 | . . . . 3 . . . . . . . . . . . . . . . . 3 . . . . 1 1 . . . . . . Prioritize 3 | . . . . 1 . . . . . . . . . . . . . . . . 1 . . . . . 1 . . . . . . Haulers 3 | . . . . 1 . . . . . . . . . . . . . . . . 1 . . . . 1 . . . . . . . Recompile 2 | . . . . 1 . . . . . . . . . . . . . . . . 1 . . . . . . . . . . . . Repair Stations . | . . . . . . . . . . . . . . . . . . . . . . . . . . . . . . . . . . Recycling Units . | . . . . . . . . . . . . . . . . . . . . . . . . . . . . . . . . . . Scanalyzers . | . . . . . . . . . . . . . . . . . . . . . . . . . . . . . . . . . . Garrison Access . | . . . . . . . . . . . . . . . . . . . . . . . . . . . . . . . . . . Data Cores Recovered 4 | . . . 1 . . . . . . . . 1 . . . . . . . . 1 . . . . . 1 . . . . . . Used . | . . . . . . . . . . . . . . . . . . . . . . . . . . . . . . . . . . Hacking Detections 70 | . 1 . 6 7 . . . . 1 . 2 6 . . 4 3 . . . . 5 . . . . 6 3 . 1 13 4 8 . Full Trace Events 7 | . . . 1 2 . . . . 1 . . . . . . . . . . . . . . . . 1 . . . 1 . 1 . Feedback Events 2 | . . . . . . . . . 1 . . . . . . . . . . . . . . . . 1 . . . . . . . Corruption 2 | . . . . . . . . . 1 . . . . . . . . . . . . . . . . 1 . . . . . . . Feedback Blocked . | . . . . . . . . . . . . . . . . . . . . . . . . . . . . . . . . . . Robot Schematics Acquired 5 | . . . . . . . 2 . . . . . . . . . . . . . . . . . . . . . . 3 . . . Robots Built 3 | . . . . . . . . . . . . . . . . . . . . . 3 . . . . . . . . . . . . Authchips . | . . . . . . . . . . . . . . . . . . . . . . . . . . . . . . . . . . Time 187 | . . . . . . . . . . . . . . . . . . . . . 187 . . . . . . . . . . . . Total Robot Build Rating 21 | . . . . . . . . . . . . . . . . . . . . . 21 . . . . . . . . . . . . Part Schematics Acquired 35 | . . . 1 3 . . 15 . . . . 2 . . . . . . . . 1 . . 4 . 2 . . 2 5 . . . Parts Built 11 | . . . . 4 . . . . . . . . . . . . . . . . 1 . . . . 4 1 . . 1 . . . Authchips 2 | . . . . 1 . . . . . . . . . . . . . . . . 1 . . . . . . . . . . . . Time 490 | . . . . 131 . . . . . . . . . . . . . . . . 58 . . . . 88 139 . . 74 . . . Total Part Build Rating 75 | . . . . 16 . . . . . . . . . . . . . . . . 7 . . . . 34 9 . . 9 . . . Parts Repaired 9 | . . . . . . . . . 1 . . . . . . . . . . . 7 . . . . . . . . 1 . . . Time 700 | . . . . . . . . . 44 . . . . . . . . . . . 634 . . . . . . . . 22 . . . Parts Recycled . | . . . . . . . . . . . . . . . . . . . . . . . . . . . . . . . . . . Recycled Matter . | . . . . . . . . . . . . . . . . . . . . . . . . . . . . . . . . . . Retrieved Matter . | . . . . . . . . . . . . . . . . . . . . . . . . . . . . . . . . . . Retrieved Components . | . . . . . . . . . . . . . . . . . . . . . . . . . . . . . . . . . . Parts Scanalyzed . | . . . . . . . . . . . . . . . . . . . . . . . . . . . . . . . . . . Part Schematics Acquired . | . . . . . . . . . . . . . . . . . . . . . . . . . . . . . . . . . . Parts Damaged . | . . . . . . . . . . . . . . . . . . . . . . . . . . . . . . . . . . Bothacking | -11 -10 -10 -8 -7 -7 -7 -7 -6 -6 -6 -6 -6 -6 -6 -6 -5 -5 -5 -5 -4 -4 -4 -4 -4 -3 -3 -3 -3 -2 -2 -1 -1 -1 ------------ Run | Jun Mat Sub Mat Fac Low Low Zio Pro Fac Was Fac Ext Cet Arc Hub Fac Upp Upp War Pro Fac Upp Upp Zhi Pro Res Arm Lab Res Tes Acc Com Ac0 Used RIF Installer . | . . . . . . . . . . . . . . . . . . . . . . . . . . . . . . . . . . Robots Hacked 1 | . . . . . . . . . . . . . . . . . . . . . . . . . . . 1 . . . . . . Non-combat . | . . . . . . . . . . . . . . . . . . . . . . . . . . . . . . . . . . Combat 1 | . . . . . . . . . . . . . . . . . . . . . . . . . . . 1 . . . . . . Robot Hacks Applied 1 | . . . . . . . . . . . . . . . . . . . . . . . . . . . 1 . . . . . . parse_system 1 | . . . . . . . . . . . . . . . . . . . . . . . . . . . 1 . . . . . . Relay Couplers Released 10 | . . . . . . . . . . . . . . . . . . . . . . . . . . . . . 5 4 1 . . Machine Destruction 3 | . . . . . . . . . . . . . . . . . . . . . . . . . . . . . 2 . 1 . . Programmers 7 | . . . . . . . . . . . . . . . . . . . . . . . . . . . . . 3 4 . . . Fabnet Peak Effective % . | . . . . . . . . . . . . . . . . . . . . . . . . . . . . . . . . . . Robots Rewired 16 | . . . . . . . . . . . . 12 . . . . . . . . . . . . . . 4 . . . . . . Allies Hacked 7 | . . . . . . . . . . . . . . . . . . . . . 1 . . . 1 . 5 . . . . . . Hacks Repelled . | . . . . . . . . . . . . . . . . . . . . . . . . . . . . . . . . . . Allies | -11 -10 -10 -8 -7 -7 -7 -7 -6 -6 -6 -6 -6 -6 -6 -6 -5 -5 -5 -5 -4 -4 -4 -4 -4 -3 -3 -3 -3 -2 -2 -1 -1 -1 -------- Run | Jun Mat Sub Mat Fac Low Low Zio Pro Fac Was Fac Ext Cet Arc Hub Fac Upp Upp War Pro Fac Upp Upp Zhi Pro Res Arm Lab Res Tes Acc Com Ac0 Total Allies 45 | . . . . 1 . . . . . . . 18 5 . . . . . . . 3 . . . . 4 14 . . . . . . Largest Group 14 | . . . . 1 . . . . . . . 14 14 11 . . . . . . 3 3 3 1 1 4 10 . . . . . . Highest-Rated Group 863 | . . . . 26 . . . . . . . 547 863 647 . . . . . . 144 144 144 48 48 148 481 . . . . . . Highest-Rated Ally 159 | . . . . 26 . . . . . . . 159 153 96 . . . . . . 48 48 48 48 48 46 58 . . . . . . Total Orders 19 | . . . . 2 . . . . . . . . 6 1 . . . . . . 2 . . . . 4 1 . . . . . 3 STAY 9 | . . . . 1 . . . . . . . . 5 1 . . . . . . 1 . . . . 1 . . . . . . . FOLLOW 4 | . . . . 1 . . . . . . . . 1 . . . . . . . 1 . . . . 1 . . . . . . . EXPLORE 3 | . . . . . . . . . . . . . . . . . . . . . . . . . . . . . . . . . 3 RETURN 3 | . . . . . . . . . . . . . . . . . . . . . . . . . . 2 1 . . . . . . Ally Attacks 376 | . . . . . . . . . . . . 122 139 18 . . . . . . 23 17 9 . 3 . 45 . . . . . . Total Damage 9383 | . . . . . . . . . . . . 2371 3308 454 . . . . . . 1015 485 322 . 88 . 1340 . . . . . . Kills 65 | . . . . . . . . . . . . 19 25 4 . . . . . . 6 3 3 . . . 5 . . . . . . Allies Corrupted 5 | . . . . . . . . . . . . 1 . 2 . . . . . . . . . . . . 2 . . . . . . Allies Melted 1 | . . . . . . . . . . . . . . . . . . . . . . . . . . . . . . . . 1 . Intel | -11 -10 -10 -8 -7 -7 -7 -7 -6 -6 -6 -6 -6 -6 -6 -6 -5 -5 -5 -5 -4 -4 -4 -4 -4 -3 -3 -3 -3 -2 -2 -1 -1 -1 ------- Run | Jun Mat Sub Mat Fac Low Low Zio Pro Fac Was Fac Ext Cet Arc Hub Fac Upp Upp War Pro Fac Upp Upp Zhi Pro Res Arm Lab Res Tes Acc Com Ac0 Robot Analysis Total 7 | . . . . . . . . . . . . . . . . . . . . . 1 . . 4 . . . . . 1 1 . . Derelict Logs Recovered 7 | . . 1 . . . . 2 2 . . . . . . . . 1 . . . . 1 . . . . . . . . . . . Drone Launches 8 | . . . . . . . . . . . . . . . . . . . . . . . . . 1 1 3 . . . . . 3 Drone Recoveries 3 | . . . . . . . . . . . . . . . . . . . . . . . . . . 2 . . . . . . 1 Exploration | -11 -10 -10 -8 -7 -7 -7 -7 -6 -6 -6 -6 -6 -6 -6 -6 -5 -5 -5 -5 -4 -4 -4 -4 -4 -3 -3 -3 -3 -2 -2 -1 -1 -1 ------------- Run | Jun Mat Sub Mat Fac Low Low Zio Pro Fac Was Fac Ext Cet Arc Hub Fac Upp Upp War Pro Fac Upp Upp Zhi Pro Res Arm Lab Res Tes Acc Com Ac0 Turns Passed 32967 | 5 1139 3729 1422 523 281 391 1290 1239 860 55 486 1510 470 616 797 913 872 467 975 412 1508 333 321 194 434 784 1280 378 561 1677 1048 5366 631 Spaces Moved 19777 | 1 661 1829 680 617 357 378 966 663 454 66 255 739 202 121 403 569 706 398 710 264 640 262 245 158 332 466 841 196 276 934 529 3645 214 Core . | . . . . . . . . . . . . . . . . . . . . . . . . . . . . . . . . . . Treads 1116 | 1 183 650 279 . . . . . . . . . . . . . . . . . . . . . . . . . . . . . 3 Legs 11987 | . . . . . . . . . 138 . . . . 64 403 569 706 398 710 264 640 262 245 158 332 466 841 196 276 934 529 3645 211 Wheels 3170 | . 478 1179 378 . . . . . . . 137 739 202 57 . . . . . . . . . . . . . . . . . . . Hover 3504 | . . . 23 617 357 378 966 663 316 66 118 . . . . . . . . . . . . . . . . . . . . . . Flight . | . . . . . . . . . . . . . . . . . . . . . . . . . . . . . . . . . . Fastest Speed 48 | 160 105 115 48 48 48 48 132 132 68 63 131 165 165 120 113 104 104 108 104 104 106 106 106 106 105 101 108 120 120 120 120 110 110 Average Speed 128 | 160 130 175 155 48 58 84 132 168 111 80 151 165 182 155 120 107 105 108 104 104 106 106 106 106 105 136 120 120 166 140 157 126 138 Slowest Speed 400 | 160 160 400 170 48 108 132 132 206 206 141 165 165 195 260 190 185 108 108 108 104 108 106 106 106 106 178 181 120 190 190 190 190 225 Overloaded Moves . | . . . . . . . . . . . . . . . . . . . . . . . . . . . . . . . . . . Propulsion Burnouts . | . . . . . . . . . . . . . . . . . . . . . . . . . . . . . . . . . . Robots Hopped . | . . . . . . . . . . . . . . . . . . . . . . . . . . . . . . . . . . Cave-ins Triggered . | . . . . . . . . . . . . . . . . . . . . . . . . . . . . . . . . . . Teleports 3 | . . . . . . . . . . . . . . . . . . . . . . . . . . . 1 . . . . 1 1 Exploration Rate (%) 50 | 2 78 94 58 16 49 54 78 78 12 66 8 84 59 83 43 16 77 62 72 47 13 42 45 60 57 16 52 92 12 83 14 72 23 Regions Visited 33 Branch Regions 22 Pre-discovered Areas 7 | . . . . . . 1 2 . . . . . . . . . . . . . . 1 . 3 . . . . . . . . . Known Exits Taken 23 | . . 1 . 1 1 1 1 1 . . 1 1 1 1 1 1 1 1 1 1 1 . . . . 1 1 1 1 1 1 . . Unknown Exits Taken 8 | 1 1 . 1 . . . . . . . . . . . . . . . . . . 1 1 1 1 . . . . . . 1 . Scrap Searched 35 | . . 15 . . . . 4 2 . . . . . . . . 3 2 . . . 2 4 . 3 . . . . . . . . Spaces Dug 351 | . . 27 . 13 31 8 . 20 8 . 3 2 . . 7 16 8 16 7 1 5 3 22 . 15 12 33 . 8 28 15 43 . Terrain Destroyed 1372 | . 13 148 5 46 41 28 . 103 15 . 63 3 2 16 20 27 136 113 86 42 9 5 24 . 20 13 75 . 16 31 39 136 97 Melee 93 | . . 20 . 13 8 8 . 3 8 . 1 . . . 5 16 1 . 7 . . . . . . 3 . . . . . . . Projectile 275 | . . 14 . . . . . 2 . . 2 3 2 16 15 1 9 3 . 1 9 5 5 . 5 10 33 . 16 31 19 49 25 AOE 982 | . 13 114 5 33 33 20 . 98 7 . 60 . . . . 10 126 110 79 41 . . 19 . 15 . 42 . . . 9 76 72 Terrain Rammed 2 | . . . . . . . . . . . . . . . . . . . . . . . . . . . . . . . . 2 . Walls Destroyed 2 | . . . . . . . . . . . . . . . . . . . . . . . . . . . . . . . . 2 . Machines Disabled . | . . . . . . . . . . . . . . . . . . . . . . . . . . . . . . . . . . Actions | -11 -10 -10 -8 -7 -7 -7 -7 -6 -6 -6 -6 -6 -6 -6 -6 -5 -5 -5 -5 -4 -4 -4 -4 -4 -3 -3 -3 -3 -2 -2 -1 -1 -1 --------- Run | Jun Mat Sub Mat Fac Low Low Zio Pro Fac Was Fac Ext Cet Arc Hub Fac Upp Upp War Pro Fac Upp Upp Zhi Pro Res Arm Lab Res Tes Acc Com Ac0 Total 25318 | 6 868 2150 900 794 395 432 980 753 702 67 332 990 297 451 553 736 777 420 883 367 1407 312 295 186 387 598 1006 333 362 1244 678 4219 438 Wait 2631 | . 139 94 24 109 10 38 . 55 139 . 35 33 67 241 33 37 24 . 97 74 684 43 33 5 22 63 49 103 5 136 35 145 59 Move 19744 | . 660 1828 679 616 356 377 965 662 454 65 254 738 201 120 402 568 705 397 709 263 639 261 244 157 331 465 840 195 275 933 528 3644 213 Hop . | . . . . . . . . . . . . . . . . . . . . . . . . . . . . . . . . . . Pick Up 231 | . 9 17 22 6 . 1 4 . 8 1 6 6 3 7 7 14 . 2 5 2 12 2 3 7 2 12 3 6 4 18 6 33 3 Fast Attach 171 | . 4 7 13 7 2 2 2 1 12 . 4 5 5 6 3 10 1 1 9 . 11 . . 4 1 6 3 4 4 7 4 29 4 Attach 131 | 3 . 12 8 4 2 1 2 1 5 1 4 1 . 2 8 5 . . 2 1 3 . . 1 1 3 3 3 8 3 4 24 16 Detach 26 | . . 1 . . 1 1 . . 4 . 3 . . . . . . . 1 . . . . . . 1 . 1 3 . 3 5 2 Swap 387 | . 8 31 18 6 3 . 1 10 12 . 7 4 5 5 10 27 19 9 12 11 14 2 6 2 12 12 15 1 6 28 20 64 7 Drop 326 | 3 6 18 40 11 3 1 5 . 12 . 2 8 10 11 . 11 1 2 14 . 12 2 3 9 4 16 12 8 6 23 9 61 3 Fire 1224 | . 42 84 70 3 4 3 . 19 6 . 12 41 6 59 73 37 25 9 18 16 31 2 6 . 14 16 66 12 51 96 67 205 131 Melee 271 | . . 58 26 32 14 8 1 5 50 . 5 1 . . 15 27 1 . 16 . . . . 1 . 4 4 . . . 2 1 . Ram 2 | . . . . . . . . . . . . . . . . . . . . . . . . . . . . . . . . 2 . Kick . | . . . . . . . . . . . . . . . . . . . . . . . . . . . . . . . . . . Crush . | . . . . . . . . . . . . . . . . . . . . . . . . . . . . . . . . . . Escape Stasis 22 | . . . . . . . . . . . . 16 . . . . . . . . . . . . . . . . . . . 6 . Rewire 149 | . . . . . . . . . . . . 137 . . . . . . . . 1 . . . . . 11 . . . . . . Trap 3 | . . . . . . . . . . . . . . . 2 . 1 . . . . . . . . . . . . . . . . Miscellaneous . | . . . . . . . . . . . . . . . . . . . . . . . . . . . . . . . . . . Route ------- -11/Junkyard -10/Materials (discovered 5 exits: *Mat x2 / [*Min x2] / *Sub) -10/Subcaves (discovered 2 exits: *Mat / *Mat) -8/Materials -7/Factory (discovered 2 exits: *Low x2) -7/Lower Caves -7/Lower Caves (discovered 2 exits: *Fac / *Zio) -7/Zion -6/Proximity Caves -6/Factory -6/Waste -6/Factory -6/Extension (discovered 2 exits: *Fac / *Cet) -6/Cetus (discovered 2 exits: *Fac / *Arc) -6/Archives (discovered 2 exits: *Hub x2) -6/Hub_04(d) (discovered 3 exits: *Fac x3) -5/Factory -5/Upper Caves -5/Upper Caves -5/Warlord -4/Proximity Caves -4/Factory (discovered 2 exits: *Upp x2) -4/Upper Caves -4/Upper Caves (discovered 2 exits: *Res / *Zhi) -4/Zhirov -3/Proximity Caves -3/Research (discovered 4 exits: *Res / *Arm / Qua x2) -3/Armory -3/Lab -2/Research (discovered 2 exits: *Tes x2) -2/Testing -1/Access -1/Command (discovered 3 exits: [*Sur x2] / [*Ac0]) -1/Access_0 To Fleet Rendezvous History --------- Turn | Location | Event 6 | -11/Junkyard | Discovered new exit (range 0) 6 | -11/Junkyard | Entered Materials 229 | -10/Materials | Discovered new exit (range 16) 314 | -10/Materials | Build established: Mutant 650 | -10/Materials | Discovered new exit (range 11) 951 | -10/Materials | Discovered new exit (range 10) 1013 | -10/Materials | Discovered new exit (range 14) 1132 | -10/Materials | Discovered new exit (range 9) 1145 | -10/Materials | Entered Subcaves 1154 | -10/Subcaves | Discovered new exit (range 15) 1234 | -10/Subcaves | Ambushed by angry Subdweller bent on revenge 1276 | -10/Subcaves | Discovered new exit (range 7) 1344 | -10/Subcaves | Visited 4L-MR0's lab 1360 | -10/Subcaves | Found Powered Cannon 1453 | -10/Subcaves | Shifting Twisted Machinery released Sub. Beam Cannon 1607 | -10/Subcaves | Core integrity fell below 50% 1705 | -10/Subcaves | Shifting Twisted Machinery released Flamer 1706 | -10/Subcaves | Shifting Twisted Machinery released Sub. Laser 1797 | -10/Subcaves | Visited Clippyterm 3016 | -10/Subcaves | Shifting Twisted Machinery released Battle Rifle 3045 | -10/Subcaves | Shifting Twisted Machinery released Battle Rifle 3084 | -10/Subcaves | A swath of the cavern ceiling suddenly collapsed 3939 | -10/Subcaves | Build established: Derelict-Mutant 4129 | -10/Subcaves | Ambushed by angry Subdweller bent on revenge 4132 | -10/Subcaves | Core integrity fell below 20% 4279 | -10/Subcaves | Ambushed by Subdweller buried in earth 4391 | -10/Subcaves | Shifting Twisted Machinery released Battle Cannon 4739 | -10/Subcaves | Build established: Mutant 4821 | -10/Subcaves | Identified exit to Materials 4871 | -10/Subcaves | Identified exit to Materials 4874 | -10/Subcaves | Entered Materials 4874 | -8/Materials | Evolved 4 slots: Propulsion x2, Utility x2 5296 | -8/Materials | Build established: Scavenger-Mutant 6024 | -8/Materials | Discovered new exit (range 4) 6296 | -8/Materials | Entered Factory 6296 | -7/Factory | Evolved 2 slots: Utility x2 6306 | -7/Factory | Identified exit to Lower Caves 6486 | -7/Factory | Found Powered Armor 6517 | -7/Factory | Fabricated Magnetic Acceleration Cannon? 6552 | -7/Factory | Build established: Hacker-Mutant 6665 | -7/Factory | Fabricated Airjet? 6819 | -7/Factory | Entered Lower Caves 7066 | -7/Lower Caves | Encountered a Warlord checkpoint 7082 | -7/Lower Caves | Discovered new exit (range 16) 7099 | -7/Lower Caves | Identified exit to Lower Caves 7100 | -7/Lower Caves | Entered another Lower Caves area 7163 | -7/Lower Caves | Learned Research terminal intel 7163 | -7/Lower Caves | Learned Research security intel 7163 | -7/Lower Caves | Learned location of 1 exit from Research 7163 | -7/Lower Caves | Learned location of Armory (-3) 7166 | -7/Lower Caves | Discovered new exit (range 13) 7223 | -7/Lower Caves | Identified exit to Factory 7477 | -7/Lower Caves | Discovered new exit (range 10) 7490 | -7/Lower Caves | Identified exit to Zion 7491 | -7/Lower Caves | Entered Zion 7539 | -7/Zion | Given the Hacking Drone Bay 7550 | -7/Zion | Discovered new exit (range 10) 7577 | -7/Zion | Learned Factory emergency access door positions 7594 | -7/Zion | Learned Factory stockpile data 7887 | -7/Zion | Learned Factory emergency access door positions 8391 | -7/Zion | Found CR-A16's Pointy Stick 8432 | -7/Zion | Found Prototype Special Weapon 8435 | -7/Zion | Found Prototype Special Weapon 8439 | -7/Zion | Found Prototype Special Weapon 8633 | -7/Zion | Visited the Megawrench Repair Shop 8633 | -7/Zion | Megawrench repaired 9 parts 8726 | -7/Zion | Build established: Mutant 8778 | -7/Zion | Identified exit to Proximity Caves 8780 | -7/Zion | Identified RU-N14's Throwing Claymores (x3) 8781 | -7/Zion | Entered Proximity Caves 8823 | -6/Proximity Caves | Learned Factory emergency access door positions 8921 | -6/Proximity Caves | Attracted the attention of an 0b10 checkpoint 10020 | -6/Proximity Caves | Entered Factory 10020 | -6/Factory | Evolved 2 slots: Propulsion x1, Utility x1 10168 | -6/Factory | Discovered new exit (range 15) 10183 | -6/Factory | Identified exit to Factory 10431 | -6/Factory | Repaired Powered Armor? 10647 | -6/Factory | Spotted B-75 Beast 10676 | -6/Factory | Revealed the true nature of CR-A16's Pointy Stick 10690 | -6/Factory | Destroyed B-75 Beast 10709 | -6/Factory | Lost 4 parts (1p3u) 10880 | -6/Factory | Sucked down chute 10880 | -6/Factory | Entered Waste 10887 | -6/Waste | Spotted C-40 Crusher 10895 | -6/Waste | EMP discharged 10896 | -6/Waste | Spotted C-40 Crusher 10902 | -6/Waste | Spotted C-40 Crusher 10905 | -6/Waste | Spotted C-40 Crusher 10907 | -6/Waste | Spotted C-40 Crusher 10914 | -6/Waste | Spotted C-40 Crusher 10915 | -6/Waste | Crushed by Compactor (1 part destroyed, 1 dropped) 10916 | -6/Waste | Discovered new exit (range 16) 10935 | -6/Waste | Entered Factory 10942 | -6/Factory | Spotted B-75 Beast 10950 | -6/Factory | Destroyed B-75 Beast 11396 | -6/Factory | Discovered new exit (range 15) 11419 | -6/Factory | Identified exit to Extension 11421 | -6/Factory | Entered Extension 11550 | -6/Extension | Rescued A7 11613 | -6/Extension | Build established: Hacker-Mutant 11696 | -6/Extension | Rescued a captive Derelict 11699 | -6/Extension | Rescued a captive Derelict 12326 | -6/Extension | Spotted B-75 Beast 12332 | -6/Extension | Destroyed B-75 Beast 12345 | -6/Extension | Spotted B-75 Beast 12371 | -6/Extension | Destroyed B-75 Beast 12430 | -6/Extension | Rescued a captive Derelict 12431 | -6/Extension | Rescued a captive Derelict 12467 | -6/Extension | Central database locked down 12660 | -6/Extension | Rescued a captive Derelict 12662 | -6/Extension | Build established: Scavenger-Mutant 12901 | -6/Extension | Discovered exit to Factory (range 10) 12902 | -6/Extension | Discovered new exit (range 6) 12929 | -6/Extension | Identified exit to Cetus 12931 | -6/Extension | Entered Cetus 12931 | -6/Cetus | Accompanied by 13 allies (A7) 12936 | -6/Cetus | Acquired a Cetus Manufacturing Module code from A7 12951 | -6/Cetus | Spotted Cetus Guard 12952 | -6/Cetus | Spotted Cetus Guard 12953 | -6/Cetus | Spotted Cetus Guard 12957 | -6/Cetus | Spotted Cetus Guard 12965 | -6/Cetus | Allies destroyed Cetus Guard 12971 | -6/Cetus | Allies destroyed Cetus Guard 12972 | -6/Cetus | Allies destroyed Cetus Guard 12973 | -6/Cetus | Allies destroyed Cetus Guard 13045 | -6/Cetus | Started Cetus Manufacturing Module 13070 | -6/Cetus | Manufactured an Enhanced Grunt 13095 | -6/Cetus | Manufactured an Enhanced Grunt 13120 | -6/Cetus | Manufactured an Enhanced Grunt 13145 | -6/Cetus | Manufactured an Enhanced Grunt 13170 | -6/Cetus | Manufactured an Enhanced Grunt 13240 | -6/Cetus | Discovered new exit (range 19) 13283 | -6/Cetus | Spotted Cetus Guard 13283 | -6/Cetus | Spotted Cetus Guard 13286 | -6/Cetus | Allies destroyed Cetus Guard 13287 | -6/Cetus | System corruption reached 10% 13287 | -6/Cetus | Spotted Cetus Guard 13290 | -6/Cetus | Spotted Cetus Guard 13290 | -6/Cetus | Allies destroyed Cetus Guard 13293 | -6/Cetus | Allies destroyed Cetus Guard 13293 | -6/Cetus | Extracted ID and sensor layout for unrecognized location from A7's data core 13293 | -6/Cetus | Discovered exit to Factory (range 20) 13298 | -6/Cetus | Allies destroyed Cetus Guard 13317 | -6/Cetus | Met Revision 17 13399 | -6/Cetus | Identified exit to Archives 13401 | -6/Cetus | Entered Archives 13401 | -6/Archives | Accompanied by 11 allies 13456 | -6/Archives | Build established: Commander-Mutant 13465 | -6/Archives | Discovered new exit (range 20) 13499 | -6/Archives | Discovered new exit (range 20) 14016 | -6/Archives | Identified exit to Hub_04(d) 14017 | -6/Archives | Entered Hub_04(d) 14089 | -6/Hub_04(d) | Discovered exit to Factory (range 11) 14112 | -6/Hub_04(d) | Core integrity fell below 50% 14328 | -6/Hub_04(d) | Discovered exit to Factory (range 5) 14329 | -6/Hub_04(d) | Discovered exit to Factory (range 18) 14396 | -6/Hub_04(d) | Build established: Scavenger-Mutant 14581 | -6/Hub_04(d) | Network Hub disabled 14642 | -6/Hub_04(d) | Spotted Lightning 14659 | -6/Hub_04(d) | Spotted Lightning 14659 | -6/Hub_04(d) | Spotted Lightning 14673 | -6/Hub_04(d) | Destroyed Lightning 14685 | -6/Hub_04(d) | Destroyed Lightning 14710 | -6/Hub_04(d) | Destroyed Lightning 14731 | -6/Hub_04(d) | Core integrity fell below 20% 14776 | -6/Hub_04(d) | Found Prototype Processor 14779 | -6/Hub_04(d) | Found Prototype Device 14784 | -6/Hub_04(d) | Found Prototype Device 14785 | -6/Hub_04(d) | Lost 9 parts (3n2u4w) 14814 | -6/Hub_04(d) | Entered Factory 14814 | -5/Factory | Evolved 2 slots: Power x1, Utility x1 14818 | -5/Factory | Identified Exp. EM Disruption Field (x2) 14820 | -5/Factory | Identified Exp. Targeting Computer 15123 | -5/Factory | Discovered new exit (range 18) 15250 | -5/Factory | Identified exit to Upper Caves 15431 | -5/Factory | Garrison activated, responded to threat 15727 | -5/Factory | Entered Upper Caves 16565 | -5/Upper Caves | Learned Factory garrison access intel 16588 | -5/Upper Caves | Discovered new exit (range 10) 16598 | -5/Upper Caves | Identified exit to Upper Caves 16599 | -5/Upper Caves | Entered another Upper Caves area 16789 | -5/Upper Caves | Build established: Scavenger-Skirmisher 17028 | -5/Upper Caves | Discovered new exit (range 17) 17065 | -5/Upper Caves | Identified exit to Warlord 17066 | -5/Upper Caves | Entered Warlord 17104 | -5/Warlord | System corruption cleaned by Quarantine Array 17432 | -5/Warlord | Build established: Scavenger-Assassin 17659 | -5/Warlord | Warlord's base attacked by MAIN.C 17683 | -5/Warlord | Met Warlord 17735 | -5/Warlord | Found Prototype Reactor 17735 | -5/Warlord | Identified Vortex Chain Reactor 17741 | -5/Warlord | Found Prototype Hackware 17750 | -5/Warlord | Found Prototype Processor 17750 | -5/Warlord | Identified Spectral Analyzer 17948 | -5/Warlord | Warlord forces counterattacked 17992 | -5/Warlord | Spotted Striker 17992 | -5/Warlord | Spotted Executioner 17996 | -5/Warlord | Destroyed Executioner 18005 | -5/Warlord | Spotted Striker 18026 | -5/Warlord | Discovered new exit (range 15) 18038 | -5/Warlord | Identified exit to Proximity Caves 18041 | -5/Warlord | Entered Proximity Caves 18062 | -4/Proximity Caves | Attracted the attention of an 0b10 checkpoint 18099 | -4/Proximity Caves | Build established: Scavenger-Mutant 18381 | -4/Proximity Caves | Discovered new exit (range 20) 18451 | -4/Proximity Caves | Identified exit to Factory 18453 | -4/Proximity Caves | Entered Factory 18453 | -4/Factory | Evolved 2 slots: Propulsion x1, Weapon x1 18454 | -4/Factory | Loaded intel: 4 garrison access locations 18608 | -4/Factory | Identified System Mapper 18658 | -4/Factory | Identified exit to Upper Caves 18664 | -4/Factory | Repaired Centrium Medium Armor Plating? 18857 | -4/Factory | Fabricated L-61 Swordsman (x3) 18925 | -4/Factory | Fabricated Heavy Servo Lattice? 19104 | -4/Factory | Repaired Broken Lrn. Proton Cannon? 19281 | -4/Factory | Repaired Centrium Medium Armor Plating 19375 | -4/Factory | Repaired Neutron Cannon 19466 | -4/Factory | Repaired Enh. Flexi-carbon Leg 19575 | -4/Factory | Repaired Enh. Biometal Leg 19691 | -4/Factory | Repaired Exp. Myomer Leg 19769 | -4/Factory | Build established: Scavenger-Tank 19961 | -4/Factory | Entered Upper Caves 19961 | -4/Upper Caves | Accompanied by 3 allies 20245 | -4/Upper Caves | Discovered new exit (range 15) 20248 | -4/Upper Caves | Build established: Scavenger-Skirmisher 20294 | -4/Upper Caves | Entered another Upper Caves area 20294 | -4/Upper Caves | Accompanied by 3 allies 20307 | -4/Upper Caves | Discovered new exit (range 9) 20598 | -4/Upper Caves | Discovered new exit (range 13) 20615 | -4/Upper Caves | Entered Zhirov 20615 | -4/Zhirov | Accompanied by 1 ally 20615 | -4/Zhirov | Discovered new exit (range 3) 20635 | -4/Zhirov | Met Zhirov 20654 | -4/Zhirov | Learned location of Quarantine (-3) 20654 | -4/Zhirov | Learned location of Testing (-2) 20654 | -4/Zhirov | Learned location of Command (-1) 20664 | -4/Zhirov | Zhirov requested help retrieving the SGEMP Prototype 20682 | -4/Zhirov | Found Alien Artifact 20682 | -4/Zhirov | Identified Integrated Reactor 20682 | -4/Zhirov | Installed Integrated Reactor, increased core energy generation (+10) 20716 | -4/Zhirov | Attached Powered Cannon, gained temporary slot: Power 20764 | -4/Zhirov | Found Alien Artifact 20809 | -4/Zhirov | Entered Proximity Caves 20809 | -3/Proximity Caves | Accompanied by 1 ally 21154 | -3/Proximity Caves | Build established: Scavenger-Tank 21227 | -3/Proximity Caves | Discovered new exit (range 10) 21243 | -3/Proximity Caves | Entered Research 21243 | -3/Research | Accompanied by 1 ally 21243 | -3/Research | Evolved 2 slots: Utility x2 21244 | -3/Research | Identified exit to Armory 21246 | -3/Research | Loaded intel: 23 terminal locations 21277 | -3/Research | Identified exit to Quarantine 21312 | -3/Research | Fabricated Rnf. Quantum Reactor (x2) 21346 | -3/Research | Spotted B-86 Titan 21355 | -3/Research | Destroyed B-86 Titan 21408 | -3/Research | Fabricated Adv. Force Field (x2) 21443 | -3/Research | Revision forces began assault on 0b10 21469 | -3/Research | Discovered new exit (range 14) 21486 | -3/Research | Met up with Revision 17++ 21600 | -3/Research | Found Quantum Capacitor 21655 | -3/Research | Build established: Hacker-Mutant 21930 | -3/Research | Found Prototype Device 21930 | -3/Research | Identified Adv. EM Disruption Field 21943 | -3/Research | Research terminal network offline 22027 | -3/Research | Entered Armory 22028 | -3/Armory | Met VL-GR5, who suggested a friendly competition 22044 | -3/Armory | Found Fusion Bomb Launcher 22182 | -3/Armory | Assisted by bots powering up and referring to "LRC-V3" 22194 | -3/Armory | Destroyed 7 combat bots 22313 | -3/Armory | Lost the competition with VL-GR5 22956 | -3/Armory | Fabricated Centrium Leg (x1) 23129 | -3/Armory | Identified Transdimensional Reconstructor 23129 | -3/Armory | Warped through subspace to slip node 23129 | -3/Armory | Discovered new exit (range 1) 23129 | -3/Armory | Identified exit to Lab 23191 | -3/Armory | Found Unknown Launcher 23191 | -3/Armory | Identified Gamma Bomb Array 23307 | -3/Armory | Entered Lab 23307 | -3/Lab | Discovered new exit (range 9) 23316 | -3/Lab | Identified exit to Research 23321 | -3/Lab | Hidden lab's door opened automatically 23321 | -3/Lab | Sensor layout match revealed 23322 | -3/Lab | Gained access to the hidden lab's interior 23367 | -3/Lab | Found Alien Artifact 23367 | -3/Lab | Identified Integrated Mediator 23367 | -3/Lab | Installed Integrated Mediator, increased core attachment efficiency. 23381 | -3/Lab | Found Alien Artifact 23381 | -3/Lab | Identified Core Expander 23381 | -3/Lab | Installed Core Expander, added new Propulsion slot 23401 | -3/Lab | Found Transdimensional Reconstructor 23566 | -3/Lab | Found Prototype Energy Cannon 23566 | -3/Lab | Identified Warp Cannon 23584 | -3/Lab | Found Hvy. Regenerative Plating 23603 | -3/Lab | Found Prototype Hackware 23649 | -3/Lab | Found Alien Artifact 23685 | -3/Lab | Entered Research 23685 | -2/Research | Warlord forces began assault on 0b10 23685 | -2/Research | Evolved 2 slots: Power x1, Utility x1 23718 | -2/Research | Identified exit to Testing 23795 | -2/Research | Research machine network offline 23858 | -2/Research | Spotted B-90 Cyclops 23984 | -2/Research | Spotted Striker 24002 | -2/Research | Destroyed Striker 24205 | -2/Research | Borebot progress halted 24246 | -2/Research | Entered Testing 24337 | -2/Testing | Found Prototype Device 24337 | -2/Testing | Identified Beam Splitter 24417 | -2/Testing | Identified Deep Network Scanner 24708 | -2/Testing | Identified Core Reset Matrix 24753 | -2/Testing | Found Prototype Ballistic Cannon 24866 | -2/Testing | Found Prototype Launcher 24866 | -2/Testing | Identified Ragnarok Missile Launcher 24875 | -2/Testing | Identified Perforator 24944 | -2/Testing | Repaired Adv. Force Field 24958 | -2/Testing | Discovered new exit (range 13) 25341 | -2/Testing | Found Exp. Shield Generator 25347 | -2/Testing | Found Prototype Processor 25361 | -2/Testing | Identified Exp. Core Analyzer 25570 | -2/Testing | Fabricated Exp. Weapon Cycler (x1) 25761 | -2/Testing | Found Prototype Device 25776 | -2/Testing | Identified Exp. Transmission Jammer 25815 | -2/Testing | Found Prototype Device 25815 | -2/Testing | Identified 2N-1CE's Frost Array 25922 | -2/Testing | Identified exit to Access 25923 | -2/Testing | Entered Access 25923 | -1/Access | Evolved 2 slots: Power x1, Utility x1 26291 | -1/Access | Found Exp. Core Analyzer 26439 | -1/Access | Identified exit to Command 26509 | -1/Access | Spotted B-99 Colossus 26529 | -1/Access | Destroyed B-99 Colossus 26971 | -1/Access | Entered Command 27534 | -1/Command | Spotted B-99 Colossus 27591 | -1/Command | Destroyed B-99 Colossus 27750 | -1/Command | First assault squad dispatched 28035 | -1/Command | Disengaged cave seal 28040 | -1/Command | Welcomed Warlord to Command 28335 | -1/Command | Warlord commented on Warlord statues 28338 | -1/Command | Spotted M Guard 28340 | -1/Command | Spotted M Guard 28340 | -1/Command | Spotted Combat Programmer 28341 | -1/Command | Destroyed Combat Programmer 28341 | -1/Command | Spotted Combat Programmer 28345 | -1/Command | Destroyed Combat Programmer 28368 | -1/Command | Destroyed M Guard 28368 | -1/Command | All MAIN.C guards destroyed 28401 | -1/Command | Found Corrupted Zero-point Reactor 28544 | -1/Command | Used Core Reset Matrix 28622 | -1/Command | Build established: Generator-Mutant 29325 | -1/Command | Disengaged cave seal 29325 | -1/Command | Derelicts emerged from the dark tunnel 29419 | -1/Command | Destroyed 9 combat bots 29680 | -1/Command | Met MAIN.C 29682 | -1/Command | Warlord shut down involuntarily 29697 | -1/Command | Destroyed MAIN.C Shell 29697 | -1/Command | 0b10 Conduit disabled 29699 | -1/Command | MAIN.C activated Command garrisons 29716 | -1/Command | Discovered new exit (range 34) 29716 | -1/Command | Discovered new exit (range 87) 29716 | -1/Command | Extracted map data and part IDs from MAIN.C's data core 29902 | -1/Command | Destroyed L6-2T8(g) 30066 | -1/Command | Found Exp. System Purifier 30094 | -1/Command | Found Zero-point Reactor 30098 | -1/Command | Found Vortex Chain Reactor 30102 | -1/Command | Found Centrium Heavy Armor Plating 30364 | -1/Command | Build established: Generator-Gunner 30647 | -1/Command | Found Adv. Kinecellerator 30652 | -1/Command | Found Exp. Targeting Computer 30787 | -1/Command | Build established: Generator-Mutant 31761 | -1/Command | Build established: Generator-Gunner 32200 | -1/Command | Found Exp. Target Analyzer 32326 | -1/Command | Attacked by Warlord forces 32327 | -1/Command | Warped through subspace to slip node 32327 | -1/Command | Discovered new exit (range 5) 32337 | -1/Command | Entered Access_0 32338 | -1/Access_0 | Sensed 1 artifact in vicinity 32339 | -1/Access_0 | Met Architect 32340 | -1/Access_0 | Architect warped through subspace 32347 | -1/Access_0 | Destroyed A8 32396 | -1/Access_0 | Architect warped through subspace 32430 | -1/Access_0 | Found Hpw. Transdimensional Reconstructor 32445 | -1/Access_0 | Architect warped through subspace 32462 | -1/Access_0 | Subspace Access Node disabled 32488 | -1/Access_0 | Architect warped through subspace 32549 | -1/Access_0 | Architect warped through subspace 32592 | -1/Access_0 | Architect warped through subspace 32600 | -1/Access_0 | Build established: Generator-Mutant 32606 | -1/Access_0 | A6 warped into view 32613 | -1/Access_0 | Destroyed A6 32626 | -1/Access_0 | Architect warped through subspace 32627 | -1/Access_0 | Subspace Access Node disabled 32681 | -1/Access_0 | Architect warped through subspace 32717 | -1/Access_0 | Architect warped through subspace 32743 | -1/Access_0 | Architect warped through subspace 32777 | -1/Access_0 | Architect warped through subspace 32796 | -1/Access_0 | Core integrity fell below 50% 32883 | -1/Access_0 | Architect warped through subspace 32894 | -1/Access_0 | Lost 7 parts (1p1n4u1w) 32902 | -1/Access_0 | Core integrity fell below 20% 32937 | -1/Access_0 | Warped through subspace to slip node 32937 | -1/Access_0 | Discovered new exit (range 8) 32961 | -1/Access_0 | Lost 3 parts (1u2w) 32968 | *** | Heading to fleet! Last Messages --------------- 32920_ Penetrated by Quantum Shear. 32923_ Quantum Shear penetrates Wall. 32923_ Architect suffers critical hit (Blast). 32923_ Destroyed Prototype Hackware. 32925_ Penetrated by Quantum Shear. 32927_ Quantum Shear penetrates Wall. 32927_ Penetrated by Quantum Shear. 32930_ Enh. Nova Cannon destroyed. 32930_ Penetrated by Quantum Shear. 32934_ Architect regenerates Prototype Hackware. 32934_ Penetrated by Quantum Shear. 32937_ The unstable cave ceiling collapses. 32937_ 4 Matter crushed. 32937_ Centrium Leg severed. 32937_ Warped through subspace, drawn to slip node. 32937_ EXIT=FOUND 32939_ A0_RES: I have more important things to do than play hide-and-seek. Deal with this piece of junk if it returns. 32960_ Acquired Centrium Leg. [Achievement: By A Hair] Map ----- +----------------------------------------------------+ | | | | | | | | | | | | | | | | | | | | | | | | | | | | | | | | | ?????????????????????????????????????????????????? | | ?????????????????????????????????????????????????? | | ?????????????????????????????????????????????????? | | ?????????????????????????????????????????????????? | | ?????????????????????????????????????????????????? | | ?????????????????????????????????????????????????? | | ????????????????????????###??????????????????????? | | ???????????????????????## ##?????????????????????? | | ???????????????????????# #?????????????????????? | | ???????????????????????# @ #?????????????????????? | | ??????????????????????## #?????????????????????? | | ??????????????????????# #?????????????????????? | | ??????????????????????# ##?????????????????????? | | ??????????????????????## #?????????????????????? | | ??????????????????????# #?????????????????????? | | ??????????????????????# ##?????????????????????? | | ??????????????????????# < #?????????????????????? | | ??????????????????????# ##?????????????????????? | | ??????????????????????## #??????????????????????? | | ???????????????????????####??????????????????????? | | ?????????????????????????????????????????????????? | | ?????????????????????????????????????????????????? | | ?????????????????????????????????????????????????? | | ?????????????????????????????????????????????????? | | ?????????????????????????????????????????????????? | | ?????????????????????????????????????????????????? | | ?????????????????????????????????????????????????? | | ?????????????????????????????????????????????????? | | ?????????????????????????????????????????????????? | | ?????????????????????????????????????????????????? | | ?????????????????????????????????????????????????? | | ?????????????????????????????????????????????????? | | ?????????????????????????????????????????????????? | | ?????????????????????????????????????????????????? | +----------------------------------------------------+ Best States ------------- Heat Dissipation 159 Coolant Potential 120 Energy Generation 163 Energy Capacity 1330 Matter Stores 800 Matter Capacity 800 Sight Range 21 Robot Scan Range 16 Terrain Scan Range 20 Terrain Scan Density 135 Jamming Range 22 Power Amplification 40 Additional Mass Support 25 Corruption Block 8 Armor Coverage 1200 Resistance: EM 75 Weapon Shielding 90 Weapon Cycling 30 Phase Shifting 10 Evasion (%) 65 Targeting Accuracy 24 Target Analysis 10 Core Analysis 8 Recoil Reduction 4 Matter Filtering 30 Particle Charging 30 Kinecelleration 50 Offensive Hacking 59 Defensive Hacking 12 Authchip Count 1 Trap Extractor Capacity 6 Item Schematics ----------------- None Robot Schematics ------------------ None Fabricated ------------ Magnetic Acceleration Cannon | x2 | -7/Factory | Preloaded Airjet | x2 | -7/Factory | Authchip L-61 Swordsman | x3 | -4/Factory | Preloaded Heavy Servo Lattice | x1 | -4/Factory | Authchip Rnf. Quantum Reactor | x2 | -3/Research | Preloaded Adv. Force Field | x2 | -3/Research | Preloaded Centrium Leg | x1 | -3/Armory | Preloaded Exp. Weapon Cycler | x1 | -2/Testing Alien Tech Used ----------------- Integrated Reactor Transdimensional Reconstructor Integrated Mediator Core Expander Core Reset Matrix High-powered Transdimensional Reconstructor Achievements -------------- By A Hair Challenges ------------ None Game ------ Seed ProjectionServoLauncher Manual? 0 Play Time 05:13:03 Cumulative 801.7 hours Start 2023.06.25 @ 00:13:11 End 2023.07.04 @ 20:17:41 Sessions 15 Manual Loads 0 Difficulty Rogue Special Mode None Game No. 691 Rogue 691 Adventurer 0 Explorer 0 Win Type 2 Total 38 Types 14/6/7/1/1/1/6/1/1 Lore% 92 Gallery% 96 Achievement% 81 Wizard Run 0 Options --------- ASCII 0 Keyboard 0 Movement Mouse Keybinds 1 Fullscreen 2 Font 24/Smallcaps Map View 76x50 Tactical HUD 1 Map Filters NONE Filters NONE Steam 1 RUN: 8a0cae7d-ad06-443a-80eb-fcc581d29b7e